2CCN - Level 2 Cost Centre Name,,9CCN - Level 9 Cost Centre Name,9CCC - Level 9 Cost Centre Code,9AN - Level 9 Account Name,9AC - Level 9 Account Code,Transaction Description,Date Paid,Transaction Reference,Analysed Amount,2AC - Level 2 Account Codes,Supplier Name,Supplier Code
Gloucester City Council,23UE,Blackfriars,LA609,Rents,3200,Blackfriars 2% gross turnover 14/15,01/09/2016,420762,1377.66,NET,English Heritage,08249C
Gloucester City Council,23UE,Car Parks,GY002,Contract Payments,0020,supply of ParkAdvance equipment,01/09/2016,423008,45735.1,CAP,Wps United Kingdom Ltd,16424K
Gloucester City Council,23UE,Cemeteries,HC300,Purch Vehicles/M. Plant <5000,4000,pump & webbing,01/09/2016,422463,448.4,NET,Teleshore (Uk) Ltd,56819G
Gloucester City Council,23UE,Countryside Unit,LP201,Maint Of Grounds - General,3030,various goods,01/09/2016,423013,51.33,NET,Screwfix Direct,54672H
Gloucester City Council,23UE,Docks Complex - Catering Servs,RB110,Catering Provisions -Food,5110,buffet food,01/09/2016,423089,32.64,NET,Janes Pantry,24500W
Gloucester City Council,23UE,Docks Complex - Catering Servs,RB110,Catering Provisions -Food,5110,food,01/09/2016,423082,16.48,NET,Janes Pantry,24500W
Gloucester City Council,23UE,Docks Complex - Catering Servs,RB110,Catering Provisions -Food,5110,food,01/09/2016,423083,7.3,NET,Janes Pantry,24500W
Gloucester City Council,23UE,Docks Complex - Catering Servs,RB110,Catering Provisions -Food,5110,food,01/09/2016,423084,18.44,NET,Janes Pantry,24500W
Gloucester City Council,23UE,Docks Complex - Catering Servs,RB110,Catering Provisions -Food,5110,food,01/09/2016,423085,9.26,NET,Janes Pantry,24500W
Gloucester City Council,23UE,Docks Complex - Catering Servs,RB110,Catering Provisions -Food,5110,food,01/09/2016,423086,12.8,NET,Janes Pantry,24500W
Gloucester City Council,23UE,Docks Complex - Catering Servs,RB110,Catering Provisions -Food,5110,food,01/09/2016,423087,8.78,NET,Janes Pantry,24500W
Gloucester City Council,23UE,Docks Complex - Catering Servs,RB110,Catering Provisions -Food,5110,food,01/09/2016,423088,7.52,NET,Janes Pantry,24500W
Gloucester City Council,23UE,Docks Complex - Catering Servs,RB110,Catering Provisions -Food,5110,food,01/09/2016,423090,10.25,NET,Janes Pantry,24500W
Gloucester City Council,23UE,Docks Complex - Catering Servs,RB110,Catering Provisions -Food,5110,food,01/09/2016,423091,18.44,NET,Janes Pantry,24500W
Gloucester City Council,23UE,Docks Complex - Catering Servs,RB110,Catering Provisions -Food,5110,food,01/09/2016,423092,12.68,NET,Janes Pantry,24500W
Gloucester City Council,23UE,Docks Complex - Catering Servs,RB110,Catering Provisions -Food,5110,food,01/09/2016,423093,14.35,NET,Janes Pantry,24500W
Gloucester City Council,23UE,Docks Complex - Catering Servs,RB110,Catering Provisions -Food,5110,food,01/09/2016,423094,7.15,NET,Janes Pantry,24500W
Gloucester City Council,23UE,Docks Complex - Catering Servs,RB110,Catering Provisions -Food,5110,food,01/09/2016,423095,18.44,NET,Janes Pantry,24500W
Gloucester City Council,23UE,Docks Complex - Catering Servs,RB110,Catering Provisions -Food,5110,food,01/09/2016,423096,9.74,NET,Janes Pantry,24500W
Gloucester City Council,23UE,Docks Complex - Catering Servs,RB110,Catering Provisions -Food,5110,food,01/09/2016,423097,15.52,NET,Janes Pantry,24500W
Gloucester City Council,23UE,Docks Complex - Catering Servs,RB110,Catering Provisions -Food,5110,food,01/09/2016,423098,13.52,NET,Janes Pantry,24500W
Gloucester City Council,23UE,Docks Complex - Catering Servs,RB110,Catering Provisions -Food,5110,food,01/09/2016,423099,18.44,NET,Janes Pantry,24500W
Gloucester City Council,23UE,Docks Complex - Catering Servs,RB110,Catering Provisions -Food,5110,food,01/09/2016,423100,23.15,NET,Janes Pantry,24500W
Gloucester City Council,23UE,Docks Complex - Catering Servs,RB110,Catering Provisions -Food,5110,food,01/09/2016,423101,8.78,NET,Janes Pantry,24500W
Gloucester City Council,23UE,Docks Complex - Catering Servs,RB110,Catering Provisions -Food,5110,food,01/09/2016,423123,112.01,NET,Bidvest Foodservice (3663),55585U
Gloucester City Council,23UE,Docks Complex - Catering Servs,RB110,Catering Provisions -Food,5110,food,01/09/2016,423143,214.79,NET,Bidvest Foodservice (3663),55585U
Gloucester City Council,23UE,Docks Complex - Catering Servs,RB110,Catering Provisions -Food,5110,food,01/09/2016,423148,127.89,NET,Bidvest Foodservice (3663),55585U
Gloucester City Council,23UE,Docks Complex - Catering Servs,RB110,Catering Provisions -Food,5110,food,01/09/2016,423164,35.89,NET,Total Produce Gloucester,12645E
Gloucester City Council,23UE,Docks Complex - Catering Servs,RB110,Catering Provisions -Food,5110,food,01/09/2016,423165,28.7,NET,Total Produce Gloucester,12645E
Gloucester City Council,23UE,Docks Complex - Catering Servs,RB110,Catering Provisions -Food,5110,food,01/09/2016,423166,50.96,NET,Total Produce Gloucester,12645E
Gloucester City Council,23UE,Docks Complex - Catering Servs,RB110,Catering Provisions -Food,5110,food,01/09/2016,423167,28.27,NET,Total Produce Gloucester,12645E
Gloucester City Council,23UE,Docks Complex - Catering Servs,RB110,Catering Provisions -Food,5110,food,01/09/2016,423168,8.64,NET,Total Produce Gloucester,12645E
Gloucester City Council,23UE,Docks Complex - Catering Servs,RB110,Catering Provisions -Food,5110,food,01/09/2016,423169,12,NET,Total Produce Gloucester,12645E
Gloucester City Council,23UE,Docks Complex - Catering Servs,RB110,Catering Provisions -Food,5110,food,01/09/2016,423170,55.04,NET,Total Produce Gloucester,12645E
Gloucester City Council,23UE,Docks Complex - Catering Servs,RB110,Catering Provisions -Food,5110,food,01/09/2016,423171,42.91,NET,Total Produce Gloucester,12645E
Gloucester City Council,23UE,Docks Complex - Catering Servs,RB110,Catering Provisions -Food,5110,food,01/09/2016,423173,67.4,NET,Total Produce Gloucester,12645E
Gloucester City Council,23UE,Docks Complex - Catering Servs,RB110,Catering Provisions -Food,5110,food,01/09/2016,423175,19.69,NET,Total Produce Gloucester,12645E
Gloucester City Council,23UE,Docks Complex - Catering Servs,RB110,Catering Provisions -Food,5110,food,01/09/2016,423176,20.22,NET,Total Produce Gloucester,12645E
Gloucester City Council,23UE,Docks Complex - Catering Servs,RB110,Catering Provisions -Food,5110,food,01/09/2016,423177,12.96,NET,Total Produce Gloucester,12645E
Gloucester City Council,23UE,Docks Complex - Catering Servs,RB110,Catering Provisions -Food,5110,food,01/09/2016,423178,36.81,NET,Total Produce Gloucester,12645E
Gloucester City Council,23UE,Docks Complex - Catering Servs,RB110,Catering Provisions -Food,5110,food,01/09/2016,423179,70.96,NET,Total Produce Gloucester,12645E
Gloucester City Council,23UE,Docks Complex - Catering Servs,RB110,Catering Provisions -Food,5110,Food,01/09/2016,423139,5.93,NET,Total Produce Gloucester,12645E
Gloucester City Council,23UE,Docks Complex - Catering Servs,RB110,Catering Provisions -Food,5110,Food,01/09/2016,423142,105.36,NET,Bidvest Foodservice (3663),55585U
Gloucester City Council,23UE,Docks Complex - Catering Servs,RB110,Catering Provisions -Food,5110,Food,01/09/2016,423172,42.33,NET,Total Produce Gloucester,12645E
Gloucester City Council,23UE,Docks Complex - Catering Servs,RB110,Catering Provisions -Food,5110,food,01/09/2016,423140,21.8,NET,Total Produce Gloucester,12645E
Gloucester City Council,23UE,Elmbridge Openspace Improv,LY164,Contract Payments,0020,Windfall Way pitch works,01/09/2016,423195,2915,CAP,S Merrett Services Limited,16478K
Gloucester City Council,23UE,Guildhall Bar And Caf�,LA210,Catering Provisions -Food,5110,milk,01/09/2016,423174,4.76,NET,Total Produce Gloucester,12645E
Gloucester City Council,23UE,Guildhall Bar And Caf�,LA210,Catering Provisions -Food,5110,milk,01/09/2016,423189,4.76,NET,Total Produce Gloucester,12645E
Gloucester City Council,23UE,Guildhall Bar And Caf�,LA210,Catering Provisions -Food,5110,milk,01/09/2016,423190,4.76,NET,Total Produce Gloucester,12645E
Gloucester City Council,23UE,Guildhall Bar And Caf�,LA210,Catering Provisions -Food,5110,milk,01/09/2016,423191,4.76,NET,Total Produce Gloucester,12645E
Gloucester City Council,23UE,Guildhall Bar And Caf�,LA210,Catering Provisions -Food,5110,milk,01/09/2016,423192,4.76,NET,Total Produce Gloucester,12645E
Gloucester City Council,23UE,REDACTED,REDACTED,REDACTED,REDACTED,REDACTED,01/09/2016,REDACTED,463.85,NET,REDACTED,REDACTED
Gloucester City Council,23UE,REDACTED,REDACTED,REDACTED,REDACTED,REDACTED,01/09/2016,REDACTED,100,NET,REDACTED,REDACTED
Gloucester City Council,23UE,REDACTED,REDACTED,REDACTED,REDACTED,REDACTED,01/09/2016,REDACTED,179.9,NET,REDACTED,REDACTED
Gloucester City Council,23UE,REDACTED,REDACTED,REDACTED,REDACTED,REDACTED,01/09/2016,REDACTED,25,NET,REDACTED,REDACTED
Gloucester City Council,23UE,REDACTED,REDACTED,REDACTED,REDACTED,REDACTED,01/09/2016,REDACTED,75,NET,REDACTED,REDACTED
Gloucester City Council,23UE,REDACTED,REDACTED,REDACTED,REDACTED,REDACTED,01/09/2016,REDACTED,200,NET,REDACTED,REDACTED
Gloucester City Council,23UE,REDACTED,REDACTED,REDACTED,REDACTED,REDACTED,01/09/2016,REDACTED,100,NET,REDACTED,REDACTED
Gloucester City Council,23UE,REDACTED,REDACTED,REDACTED,REDACTED,REDACTED,01/09/2016,REDACTED,300,NET,REDACTED,REDACTED
Gloucester City Council,23UE,REDACTED,REDACTED,REDACTED,REDACTED,REDACTED,01/09/2016,REDACTED,500,NET,REDACTED,REDACTED
Gloucester City Council,23UE,REDACTED,REDACTED,REDACTED,REDACTED,REDACTED,01/09/2016,REDACTED,125,NET,REDACTED,REDACTED
Gloucester City Council,23UE,REDACTED,REDACTED,REDACTED,REDACTED,REDACTED,01/09/2016,REDACTED,250,NET,REDACTED,REDACTED
Gloucester City Council,23UE,REDACTED,REDACTED,REDACTED,REDACTED,REDACTED,01/09/2016,REDACTED,200,NET,REDACTED,REDACTED
Gloucester City Council,23UE,REDACTED,REDACTED,REDACTED,REDACTED,REDACTED,01/09/2016,REDACTED,150,NET,REDACTED,REDACTED
Gloucester City Council,23UE,REDACTED,REDACTED,REDACTED,REDACTED,REDACTED,01/09/2016,REDACTED,100,NET,REDACTED,REDACTED
Gloucester City Council,23UE,REDACTED,REDACTED,REDACTED,REDACTED,REDACTED,01/09/2016,REDACTED,125,NET,REDACTED,REDACTED
Gloucester City Council,23UE,REDACTED,REDACTED,REDACTED,REDACTED,REDACTED,01/09/2016,REDACTED,5421.6,NET,REDACTED,REDACTED
Gloucester City Council,23UE,REDACTED,REDACTED,REDACTED,REDACTED,REDACTED,01/09/2016,REDACTED,400,NET,REDACTED,REDACTED
Gloucester City Council,23UE,REDACTED,REDACTED,REDACTED,REDACTED,REDACTED,01/09/2016,REDACTED,50,NET,REDACTED,REDACTED
Gloucester City Council,23UE,REDACTED,REDACTED,REDACTED,REDACTED,REDACTED,01/09/2016,REDACTED,72,NET,REDACTED,REDACTED
Gloucester City Council,23UE,REDACTED,REDACTED,REDACTED,REDACTED,REDACTED,01/09/2016,REDACTED,72,NET,REDACTED,REDACTED
Gloucester City Council,23UE,REDACTED,REDACTED,REDACTED,REDACTED,REDACTED,01/09/2016,REDACTED,1200,NET,REDACTED,REDACTED
Gloucester City Council,23UE,REDACTED,REDACTED,REDACTED,REDACTED,REDACTED,01/09/2016,REDACTED,50,NET,REDACTED,REDACTED
Gloucester City Council,23UE,REDACTED,REDACTED,REDACTED,REDACTED,REDACTED,01/09/2016,REDACTED,588.52,NET,REDACTED,REDACTED
Gloucester City Council,23UE,REDACTED,REDACTED,REDACTED,REDACTED,REDACTED,01/09/2016,REDACTED,631.23,NET,REDACTED,REDACTED
Gloucester City Council,23UE,REDACTED,REDACTED,REDACTED,REDACTED,REDACTED,01/09/2016,REDACTED,677,CAP,REDACTED,REDACTED
Gloucester City Council,23UE,Investment Property,RB500,General Repair/Maint Buildings,3000,deep clean at Guildhall,01/09/2016,423047,295,NET,Carlton Service Uk Limited,17196P
Gloucester City Council,23UE,Kings Quarter,RY146,Contract Payments,0020,re Wessex House,01/09/2016,423023,500,CAP,Bruton Knowles,57534T
Gloucester City Council,23UE,Managing Director,RE100,Subscriptions,5600,Local Govt Chronicle subscription 16/17,01/09/2016,423041,199,NET,Emap Publishing Ltd,16461D
Gloucester City Council,23UE,Retail Market - Landlord,HM300,Trade Refuse Collection,3630,AUG16 food waste,01/09/2016,423005,120,NET,B & S Pointon Ltd,06253G
Gloucester City Council,23UE,Robinswood All Paths Project,LY162,Contract Payments,0020,cafe garden planting,01/09/2016,422682,31,CAP,Gloucestershire Wildlife Trust,15576A
Gloucester City Council,23UE,Superbreak,LT104,Materials For Sale,5080,tickets sold on commission,01/09/2016,422593,49,NET,Superbreak Mini Holidays,00712D
Gloucester City Council,23UE,Superbreak,LT104,Sale Of Goods And Services,9230,tickets sold on commission,01/09/2016,422593,-4.08,NET,Superbreak Mini Holidays,00712D
Gloucester City Council,23UE,The Arbor,HC501,Catering Provisions -Food,5110,food,01/09/2016,423120,202.95,NET,Bidvest Foodservice (3663),55585U
Gloucester City Council,23UE,The Arbor,HC501,Catering Provisions -Food,5110,food,01/09/2016,423121,294.03,NET,Bidvest Foodservice (3663),55585U
Gloucester City Council,23UE,The Arbor,HC501,Catering Provisions -Food,5110,food,01/09/2016,423122,159.27,NET,Bidvest Foodservice (3663),55585U
Gloucester City Council,23UE,The Arbor,HC501,Catering Provisions -Food,5110,food,01/09/2016,423127,290.91,NET,Bidvest Foodservice (3663),55585U
Gloucester City Council,23UE,The Arbor,HC501,Catering Provisions -Food,5110,food,01/09/2016,423144,35.91,NET,Total Produce Gloucester,12645E
Gloucester City Council,23UE,The Arbor,HC501,Catering Provisions -Food,5110,food,01/09/2016,423145,319.69,NET,Bidvest Foodservice (3663),55585U
Gloucester City Council,23UE,The Arbor,HC501,Catering Provisions -Food,5110,food,01/09/2016,423146,153.8,NET,Bidvest Foodservice (3663),55585U
Gloucester City Council,23UE,The Arbor,HC501,Catering Provisions -Food,5110,food,01/09/2016,423180,33.07,NET,Total Produce Gloucester,12645E
Gloucester City Council,23UE,The Arbor,HC501,Catering Provisions -Food,5110,food,01/09/2016,423181,38.01,NET,Total Produce Gloucester,12645E
Gloucester City Council,23UE,The Arbor,HC501,Catering Provisions -Food,5110,food,01/09/2016,423182,34.76,NET,Total Produce Gloucester,12645E
Gloucester City Council,23UE,The Arbor,HC501,Catering Provisions -Food,5110,food,01/09/2016,423183,44.34,NET,Total Produce Gloucester,12645E
Gloucester City Council,23UE,The Arbor,HC501,Catering Provisions -Food,5110,food,01/09/2016,423184,82.69,NET,Total Produce Gloucester,12645E
Gloucester City Council,23UE,The Arbor,HC501,Catering Provisions -Food,5110,food,01/09/2016,423185,41.16,NET,Total Produce Gloucester,12645E
Gloucester City Council,23UE,The Arbor,HC501,Catering Provisions -Food,5110,food,01/09/2016,423186,29.95,NET,Total Produce Gloucester,12645E
Gloucester City Council,23UE,The Arbor,HC501,Catering Provisions -Food,5110,food,01/09/2016,423187,17.04,NET,Total Produce Gloucester,12645E
Gloucester City Council,23UE,The Arbor,HC501,Catering Provisions -Food,5110,food,01/09/2016,423188,12.31,NET,Total Produce Gloucester,12645E
Gloucester City Council,23UE,The Arbor,HC501,Catering Provisions -Food,5110,Food,01/09/2016,423141,35.74,NET,Total Produce Gloucester,12645E
Gloucester City Council,23UE,The Arbor,HC501,Catering Provisions -Liquor,5111,drinks for resale,01/09/2016,423149,280.71,NET,Cellar Supplies Cheltenham Ltd,01563L
Gloucester City Council,23UE,Business Transformation & Tech,RT700,Internet Service Provider Fees,5429,Charges Aug - Sep 2016,02/09/2016,422791,119.6,NET,Virgin Media Business,01869B
Gloucester City Council,23UE,Contact Centre,RB300,Operational Equipment <5000,5012,"Ergorest Large Jaw, Black - credited",02/09/2016,423196,72,NET,Back Care Solutions Ltd,17177U
Gloucester City Council,23UE,Contact Centre,RB300,Operational Equipment <5000,5012,oystermouse & ergorests,02/09/2016,422163,175.5,NET,Back Care Solutions Ltd,17177U
Gloucester City Council,23UE,Council Streetcare Team,HI101,Fees For Services Received,5350,Kingsway Ponds watering,02/09/2016,423055,400,NET,Charlton Abbotts Forestry Ltd,14989X
Gloucester City Council,23UE,Council Streetcare Team,HI101,Maint Of Grounds - General,3030,parts for football goal,02/09/2016,422164,67.89,NET,Stadia Sports International At Broxap,13032M
Gloucester City Council,23UE,Council Streetcare Team,HI101,Signs / Nameplates,3039,street name plates,02/09/2016,422214,340.2,NET,Enterprise (Aol) Ltd,06695G
Gloucester City Council,23UE,Council Streetcare Team,HI101,Window Cleaning,3610,JUL16 eastgate chamber window cleaning,02/09/2016,422580,130,NET,Poles Apart Window Cleaning,11636R
Gloucester City Council,23UE,Development Management,PT200,Fees For Services Received,5350,Temporary staff w/e 08/08/2016,02/09/2016,422758,1213.6,NET,The Oyster Partnership Limited,14900T
Gloucester City Council,23UE,General Drainage Works,PY241,Contract Payments,0020,Site Survey,02/09/2016,423049,495,CAP,Nailsworth Services Ltd,16507E
Gloucester City Council,23UE,General Works Fund,RY203,Consultants Fees,0030,JUL16 survey design & CAD work,02/09/2016,423259,684,CAP,Graham Parker Environmental Design Solutions,16390B
Gloucester City Council,23UE,Gloucester Guildhall,LA100,Fees For Services Received,5350,vinyl banner removal works at Guildhall,02/09/2016,423260,260,NET,A Murray Masonry,13836K
Gloucester City Council,23UE,Guildhall Exhibitions,LA204,Fees For Services Received,5350,art sold at Guildhall,02/09/2016,423262,208.25,NET,REDACTED,REDACTED
Gloucester City Council,23UE,REDACTED,REDACTED,REDACTED,REDACTED,REDACTED,02/09/2016,REDACTED,204,NET,REDACTED,REDACTED
Gloucester City Council,23UE,Hmo Licences,HE520,Operational Equipment <5000,5012,Barton St works,02/09/2016,423257,190.4,NET,Severnside Security Ltd,14661M
Gloucester City Council,23UE,Homelessness,CH120,Rent In Advance,5516,ria & deposit,02/09/2016,423245,456.92,NET,Martin & Co,64118Y
Gloucester City Council,23UE,Homelessness Prevention,CH122,Fees For Services Received,5350,ria & deposit,02/09/2016,423245,530,NET,Martin & Co,64118Y
Gloucester City Council,23UE,Housing Works In Default,HD500,Clearance And Cleansing Fees,5384,locksmith services 1/8/16,02/09/2016,423032,160.15,NET,Gloucester Locksmiths,18160C
Gloucester City Council,23UE,Investment Property,RB500,General Repair/Maint Buildings,3000,MTC claims JULY 2016,02/09/2016,423256,23080.87,NET,Rf Gardiner Limited,12299B
Gloucester City Council,23UE,Legal Services,RS200,Contracted Services,6970,Q1 legal recharge,02/09/2016,423080,85714.26,NET,Tewkesbury Borough Council,43800C
Gloucester City Council,23UE,Licences,HE510,Vocational Training,2970,BIIAB course fees,02/09/2016,423261,600,NET,Apt Ltd,04741G
Gloucester City Council,23UE,Parks Contract Management,LP100,Maint Of Grounds - General,3030,spare parts,02/09/2016,423113,1879.18,NET,Sutcliffe Play (Southwest) Ltd,02238S
Gloucester City Council,23UE,Pest Control,HD400,Fees For Services Received,5350,pest control visits,02/09/2016,423252,4279.15,NET,Falconry Services Ltd,10692P
Gloucester City Council,23UE,Robinswood All Paths Project,LY162,Contract Payments,0020,Supply & Install Fences,02/09/2016,422809,4968,CAP,Glebe Contractors,07906U
Gloucester City Council,23UE,Tic Stamp Sales,LT102,Postages,5400,Postcard Stamp,02/09/2016,422789,190,NET,Universal Mail United Kingdom Ltd,14283Y
Gloucester City Council,23UE,Tic Trading,LT110,Materials For Sale,5080,Cathedral film DVDs for resale,02/09/2016,422680,106.05,NET,Purple Knight,11270M
Gloucester City Council,23UE,REDACTED,REDACTED,REDACTED,REDACTED,REDACTED,05/09/2016,REDACTED,223.6,NET,REDACTED,REDACTED
Gloucester City Council,23UE,Council Streetcare Team,HI101,Maint Of Grounds - General,3030,Chlorine Tablets,05/09/2016,422744,63.1,NET,Ermin Plant Hire & Services Ltd,14150V
Gloucester City Council,23UE,Crematorium,HC200,Fees For Services Received,5350,Crem Fees August 2016,05/09/2016,423291,694.88,NET,Dr R W Bell,01571P
Gloucester City Council,23UE,Crematorium,HC200,Fees For Services Received,5350,Crem Fees August 2016,05/09/2016,423292,817.52,NET,Dr D Martin,00890P
Gloucester City Council,23UE,Crematorium,HC200,Fees For Services Received,5350,Crem Fees August 2016,05/09/2016,423293,1074.96,NET,Dr C M Stretton,00306P
Gloucester City Council,23UE,Development Management,PT200,Fees For Services Received,5350,temporary staff w/c 15/8/16,05/09/2016,423051,1400,NET,The Oyster Partnership Limited,14900T
Gloucester City Council,23UE,Guildhall Events,LA200,Fees For Services Received,5350,Live Wire Lighting,05/09/2016,423027,150,NET,Connect Electrical Contracting,12405D
Gloucester City Council,23UE,REDACTED,REDACTED,REDACTED,REDACTED,REDACTED,05/09/2016,REDACTED,465,NET,REDACTED,REDACTED
Gloucester City Council,23UE,REDACTED,REDACTED,REDACTED,REDACTED,REDACTED,05/09/2016,REDACTED,184.62,NET,REDACTED,REDACTED
Gloucester City Council,23UE,REDACTED,REDACTED,REDACTED,REDACTED,REDACTED,05/09/2016,REDACTED,295.4,NET,REDACTED,REDACTED
Gloucester City Council,23UE,REDACTED,REDACTED,REDACTED,REDACTED,REDACTED,05/09/2016,REDACTED,400,NET,REDACTED,REDACTED
Gloucester City Council,23UE,REDACTED,REDACTED,REDACTED,REDACTED,REDACTED,05/09/2016,REDACTED,320,NET,REDACTED,REDACTED
Gloucester City Council,23UE,Investment Property,RB500,General Repair/Maint Buildings,3000,Various Items,05/09/2016,422745,236,NET,Ermin Plant Hire & Services Ltd,14150V
Gloucester City Council,23UE,REDACTED,REDACTED,REDACTED,REDACTED,REDACTED,05/09/2016,REDACTED,247,NET,REDACTED,REDACTED
Gloucester City Council,23UE,REDACTED,REDACTED,REDACTED,REDACTED,REDACTED,05/09/2016,REDACTED,115,NET,REDACTED,REDACTED
Gloucester City Council,23UE,Retail Market - Landlord,HM300,Other Minor Supplies Services,5590,Stickers,05/09/2016,423006,20,NET,Alpha Colour Printers Ltd,00945B
Gloucester City Council,23UE,S106 Hempsted Way Play Area,LY156,Contract Payments,0020,Footbal Goals,05/09/2016,423056,2695,CAP,Broxap Ltd,01141U
Gloucester City Council,23UE,Taxi Marshalling Scheme,HL101,Taxi Marshals,5387,Taxi Marshall - 01/02 07 2016,05/09/2016,422998,172.5,NET,Cuff Facilities Ltd,16436C
Gloucester City Council,23UE,Taxi Marshalling Scheme,HL101,Taxi Marshals,5387,Taxi Marshall - 03/04 06 2016,05/09/2016,422999,172.5,NET,Cuff Facilities Ltd,16436C
Gloucester City Council,23UE,Taxi Marshalling Scheme,HL101,Taxi Marshals,5387,Taxi Marshall - 08/09 07 2016,05/09/2016,422996,172.5,NET,Cuff Facilities Ltd,16436C
Gloucester City Council,23UE,Taxi Marshalling Scheme,HL101,Taxi Marshals,5387,Taxi Marshall - 10/06/2016,05/09/2016,422997,80.5,NET,Cuff Facilities Ltd,16436C
Gloucester City Council,23UE,Taxi Marshalling Scheme,HL101,Taxi Marshals,5387,Taxi Marshall - 17/18 05 2016,05/09/2016,422995,172.5,NET,Cuff Facilities Ltd,16436C
Gloucester City Council,23UE,Taxi Marshalling Scheme,HL101,Taxi Marshals,5387,Taxi Marshall - 20/21 05 2016,05/09/2016,422994,172.5,NET,Cuff Facilities Ltd,16436C
Gloucester City Council,23UE,Taxi Marshalling Scheme,HL101,Taxi Marshals,5387,Taxi Marshall 25/06/2016,05/09/2016,422992,92,NET,Cuff Facilities Ltd,16436C
Gloucester City Council,23UE,Taxi Marshalling Scheme,HL101,Taxi Marshals,5387,Taxi Marshall - 27-28/05 2016,05/09/2016,422993,172.5,NET,Cuff Facilities Ltd,16436C
Gloucester City Council,23UE,Vehicles,RS140,Fuel,4012,vehicle fuel,05/09/2016,423246,72.97,NET,Allstar Business Solutions Ltd (Arval),06594A
Gloucester City Council,23UE,Council Streetcare Team,HI101,Fees For Services Received,5350,Kingsway Open Space,06/09/2016,423035,250,NET,Greenfields Garden Services Ltd,48130G
Gloucester City Council,23UE,Council Streetcare Team,HI101,Maint Of Grounds - General,3030,King George Works,06/09/2016,423039,600,NET,Greenfields Garden Services Ltd,48130G
Gloucester City Council,23UE,Council Streetcare Team,HI101,Maint Of Grounds - General,3030,Matson Park - Bins,06/09/2016,423038,440,NET,Greenfields Garden Services Ltd,48130G
Gloucester City Council,23UE,Council Streetcare Team,HI101,Maint Of Grounds - General,3030,The Oval,06/09/2016,423040,600,NET,Greenfields Garden Services Ltd,48130G
Gloucester City Council,23UE,Guildhall Events,LA200,Fees For Services Received,5350,Event technical support,06/09/2016,423028,150,NET,Connect Electrical Contracting,12405D
Gloucester City Council,23UE,Building Control,PT400,Fees For Services Received,5350,Building Control partnership,07/09/2016,423010,3526.9,NET,Stroud District Council,42500D
Gloucester City Council,23UE,Cemeteries,HC300,Basic Pay - Temporary Staff,2751,temporary staff w/e 21/8/16,07/09/2016,423000,439.88,NET,Premiere Employment Group Ltd,55468Z
Gloucester City Council,23UE,Cemeteries,HC300,Basic Pay - Temporary Staff,2751,temporary staff w/e 14/8/16,07/09/2016,423110,439.88,NET,Premiere Employment Group Ltd,55468Z
Gloucester City Council,23UE,Cemeteries,HC300,Basic Pay - Temporary Staff,2751,temporary staff w/e 21/8/16,07/09/2016,423001,351.9,NET,Premiere Employment Group Ltd,55468Z
Gloucester City Council,23UE,Cemeteries,HC300,Operational Materials,5070,"type 1 stone, bags of cement, sand",07/09/2016,423250,191,NET,Allstone Sand & Gravel Aggregates Ltd,00940M
Gloucester City Council,23UE,Cemeteries,HC300,Trade Refuse Tipping Fees,6297,skip exchange,07/09/2016,423248,320,NET,Allstone Sand & Gravel Aggregates Ltd,00940M
Gloucester City Council,23UE,Cemeteries,HC300,Trade Refuse Tipping Fees,6297,skip exchange,07/09/2016,423249,320,NET,Allstone Sand & Gravel Aggregates Ltd,00940M
Gloucester City Council,23UE,Cemeteries,HC300,Trade Refuse Tipping Fees,6297,skip exchange,07/09/2016,423251,420,NET,Allstone Sand & Gravel Aggregates Ltd,00940M
Gloucester City Council,23UE,Cems/Crems Admin,HC100,Office Equipment <5000,5010,Cables,07/09/2016,422588,1525,NET,Capita Business Services Limited,54095C
Gloucester City Council,23UE,Civica Admin Charges,RT105,Postages,5400,acct 0870585007 AUG16,07/09/2016,423136,1300.3,NET,Royal Mail S.Wales & South West,35830S
Gloucester City Council,23UE,Civica Contract Revs & Bens,RT250,Fees For Services Received,5350,Revenues & Benefits service OCT16,07/09/2016,423255,137797,NET,Civica Uk Ltd,10841X
Gloucester City Council,23UE,Council Streetcare Team,HI101,Fees For Services Received,5350,Glevum Court Play Area,07/09/2016,423034,100,NET,Greenfields Garden Services Ltd,48130G
Gloucester City Council,23UE,Council Streetcare Team,HI101,Maint Of Grounds - General,3030,Hillfield Gardens,07/09/2016,423037,386,NET,Greenfields Garden Services Ltd,48130G
Gloucester City Council,23UE,Council Streetcare Team,HI101,Maint Of Grounds - General,3030,padlocks & keys,07/09/2016,422517,245,NET,London Tools Ltd,13538X
Gloucester City Council,23UE,Disabled Facilities Grants,CY013,Disabled Facility Grants,0074,Disabled Facilities Grant MDF5192,07/09/2016,423314,4022.8,CAP,Mears Home Improvement Ltd,00096G
Gloucester City Council,23UE,Flooding And Drainage,HE306,Maint Of Grounds - General,3030,Dimore brook works,07/09/2016,423046,180,NET,Rdb Safety Boat Ltd,13507J
Gloucester City Council,23UE,Flooding And Drainage,HE306,Maint Of Grounds - General,3030,Quay wall works,07/09/2016,423045,135,NET,Rdb Safety Boat Ltd,13507J
Gloucester City Council,23UE,REDACTED,REDACTED,REDACTED,REDACTED,REDACTED,07/09/2016,REDACTED,561.4,NET,REDACTED,REDACTED
Gloucester City Council,23UE,Homelessness,CH120,Rent In Advance,5516,RIA & Deposit,07/09/2016,423316,368.2,NET,Barton & Tredworth Developments Ltd,58165T
Gloucester City Council,23UE,Homelessness Prevention,CH122,Fees For Services Received,5350,RIA & Deposit,07/09/2016,423316,430,NET,Barton & Tredworth Developments Ltd,58165T
Gloucester City Council,23UE,Kings Quarter,RY146,Contract Payments,0020,Sewer Diversion,07/09/2016,423315,621.36,CAP,Severn Trent Water Ltd,02417P
Gloucester City Council,23UE,Nms Contract,HI102,Fees For Services Received,5350,Support Costs April & May 2016,07/09/2016,422075,1255.61,NET,Somerset County Council,15963G
Gloucester City Council,23UE,Nms Contract,HI102,Operational Materials,5070,Purple Sacks,07/09/2016,423061,953,NET,Polystar Plastics Ltd,01120C
Gloucester City Council,23UE,Robinswood All Paths Project,LY162,Contract Payments,0020,All Paths project fees FEB-JUL16,07/09/2016,422599,6250,CAP,Gloucestershire Wildlife Trust,15576A
Gloucester City Council,23UE,Robinswood All Paths Project,LY162,Contract Payments,0020,Robinswood Hill - Bins,07/09/2016,423036,880,CAP,Greenfields Garden Services Ltd,48130G
Gloucester City Council,23UE,Youth Grant 2011/12,FP107,Grants,7100C,Youth Grant,07/09/2016,423318,9170,NET,The Venture: White City,10402E
Gloucester City Council,23UE,Docks Complex - Services,RB100,Uniforms,5201,poloshirts,08/09/2016,423057,25.38,NET,Safpro Industrial Supply Co,39190W
Gloucester City Council,23UE,General Drainage Works,PY241,Contract Payments,0020,Payment Error Correction,08/09/2016,423352,91.31,CAP,Western Power Distribution,13058T
Gloucester City Council,23UE,Homelessness,CH120,Rent In Advance,5516,RIA & Deposit,08/09/2016,423351,588.52,NET,Chawda Holdings Ltd,08904N
Gloucester City Council,23UE,REDACTED,REDACTED,REDACTED,REDACTED,REDACTED,08/09/2016,REDACTED,489.44,NET,REDACTED,REDACTED
Gloucester City Council,23UE,Homelessness Prevention,CH122,Fees For Services Received,5350,RIA & Deposit,08/09/2016,423351,630,NET,Chawda Holdings Ltd,08904N
Gloucester City Council,23UE,Vehicles,RS140,Fuel,4012,Fuel,08/09/2016,423163,251.03,NET,Allstar Business Solutions Ltd (Arval),06594A
Gloucester City Council,23UE,Business Planning & Performanc,RL500,Fees For Services Received,5350,English Team management profile,09/09/2016,423048,976.5,NET,Tms Development International Limited,17190C
Gloucester City Council,23UE,Cemeteries,HC300,Maint Of Grounds - General,3030,type 1 stone & red sand,09/09/2016,423247,64,NET,Allstone Sand & Gravel Aggregates Ltd,00940M
Gloucester City Council,23UE,Client Revs & Bens Contract,RT240,Fees For Services Received,5350,benefit cap changes implementation,09/09/2016,423347,31258.19,NET,Civica Uk Ltd,10841X
Gloucester City Council,23UE,Docks Complex - Services,RB100,Cctv Servicing & Maint,3016,Site Attendance 17/05/2016,09/09/2016,420825,161,NET,Key Intergrated Systems Ltd,17166Z
Gloucester City Council,23UE,Aspire Admin Charges,LC105,Fees For Services Received,5350,JUL16 GCC staff memberships,13/09/2016,422119,406,NET,Aspire Sports & Cultural Trust,08135V
Gloucester City Council,23UE,Cemeteries,HC300,Operational Materials,5070,Various Items,13/09/2016,422618,26.02,NET,Acs Business Supplies Ltd,15791M
Gloucester City Council,23UE,Cems/Crems Admin,HC100,Office Equipment <5000,5010,CAPITA BUSINESS SERVICES LIMIT,13/09/2016,423348,166.6,NET,Capita Business Services Limited,54095C
Gloucester City Council,23UE,Cems/Crems Admin,HC100,Security Services Fees,5351,Services July 2016,13/09/2016,422731,14.11,NET,G4s Cash Solutions (Uk) Ltd,04290V
Gloucester City Council,23UE,Client Revs & Bens Contract,RT240,Bailiffs Fees,5368,VAT due on statutory fees,13/09/2016,422645,0,NET,Bristow & Sutor,05450M
Gloucester City Council,23UE,Client Revs & Bens Contract,RT240,Bailiffs Fees,5368,VAT on fees collected,13/09/2016,422525,0,NET,Phoenix Commercial Collections Ltd,13435J
Gloucester City Council,23UE,Client Revs & Bens Contract,RT240,Bailiffs Fees,5368,VAT on fees collected,13/09/2016,422526,0,NET,Phoenix Commercial Collections Ltd,13435J
Gloucester City Council,23UE,Client Revs & Bens Contract,RT240,Bailiffs Fees,5368,VAT only invoice,13/09/2016,423002,0,NET,Bristow & Sutor,05450M
Gloucester City Council,23UE,Client Revs & Bens Contract,RT240,Bailiffs Fees,5368,VAT only invoice,13/09/2016,423016,0,NET,Phoenix Commercial Collections Ltd,13435J
Gloucester City Council,23UE,Client Revs & Bens Contract,RT240,Fees For Services Received,5350,UK PAYMENTS ADMINISTRATION LTD,13/09/2016,423472,30,NET,Uk Payments Administration Ltd,53691N
Gloucester City Council,23UE,Corporate Reporting /Financing,RC504,Fees For Services Received,5350,Actuarial recharge,13/09/2016,423119,663.3,NET,Gloucestershire County Council,10614L
Gloucester City Council,23UE,Corporate Reporting /Financing,RC504,Fees For Services Received,5350,Childcare Vouchers,13/09/2016,422555,49.62,NET,Wider Plan Ltd ( Formerly Kiddivouchers),07893B
Gloucester City Council,23UE,Crematorium,HC200,Cleaning Materials,3600,Various Items,13/09/2016,422618,18.78,NET,Acs Business Supplies Ltd,15791M
Gloucester City Council,23UE,REDACTED,REDACTED,REDACTED,REDACTED,REDACTED,13/09/2016,REDACTED,172,NET,REDACTED,REDACTED
Gloucester City Council,23UE,Disabled Facilities Grants,CY013,Disabled Facility Grants,0074,Disabled Facilities Grant MDF5213 FINAL,13/09/2016,423578,1639,CAP,Stroud Stairlifts,10315A
Gloucester City Council,23UE,Docks Complex - Services,RB100,Cleaning Materials,3600,Various Items,13/09/2016,422618,203.53,NET,Acs Business Supplies Ltd,15791M
Gloucester City Council,23UE,Docks Complex - Services,RB100,Security Services Fees,5351,Services July 2016,13/09/2016,422731,3.53,NET,G4s Cash Solutions (Uk) Ltd,04290V
Gloucester City Council,23UE,Financial Services,RT200,Fees For Services Received,5350,Royal Mail VAT invoice disbursements,13/09/2016,423577,2667.31,NET,Mishcon De Reya,15787C
Gloucester City Council,23UE,Gloucester Guildhall,LA100,Cleaning Materials,3600,Various Items,13/09/2016,422618,4.66,NET,Acs Business Supplies Ltd,15791M
Gloucester City Council,23UE,REDACTED,REDACTED,REDACTED,REDACTED,REDACTED,13/09/2016,REDACTED,100,NET,REDACTED,REDACTED
Gloucester City Council,23UE,REDACTED,REDACTED,REDACTED,REDACTED,REDACTED,13/09/2016,REDACTED,368.2,NET,REDACTED,REDACTED
Gloucester City Council,23UE,REDACTED,REDACTED,REDACTED,REDACTED,REDACTED,13/09/2016,REDACTED,588.52,NET,REDACTED,REDACTED
Gloucester City Council,23UE,REDACTED,REDACTED,REDACTED,REDACTED,REDACTED,13/09/2016,REDACTED,489.44,NET,REDACTED,REDACTED
Gloucester City Council,23UE,Homelessness,CH120,Vocational Training,2970,training course,13/09/2016,423440,1000,NET,Upkeep Training,17164D
Gloucester City Council,23UE,REDACTED,REDACTED,REDACTED,REDACTED,REDACTED,13/09/2016,REDACTED,450,NET,REDACTED,REDACTED
Gloucester City Council,23UE,Homelessness Prevention,CH122,Vocational Training,2970,training course,13/09/2016,423440,475,NET,Upkeep Training,17164D
Gloucester City Council,23UE,REDACTED,REDACTED,REDACTED,REDACTED,REDACTED,13/09/2016,REDACTED,1100,NET,REDACTED,REDACTED
Gloucester City Council,23UE,REDACTED,REDACTED,REDACTED,REDACTED,REDACTED,13/09/2016,REDACTED,1000,NET,REDACTED,REDACTED
Gloucester City Council,23UE,Nms Contract,HI102,Contracted Services,6970,Service Fee April 2016,13/09/2016,421234,6464.37,NET,Enterprise (Aol) Ltd,06695G
Gloucester City Council,23UE,Rehousing,CH111,Vocational Training,2970,training course,13/09/2016,423440,475,NET,Upkeep Training,17164D
Gloucester City Council,23UE,Retail Market - Landlord,HM300,Cleaning / Domestic Equipment,5011,Various Items,13/09/2016,422618,352.73,NET,Acs Business Supplies Ltd,15791M
Gloucester City Council,23UE,The Arbor,HC501,Cleaning Materials,3600,Various Items,13/09/2016,422618,142.77,NET,Acs Business Supplies Ltd,15791M
Gloucester City Council,23UE,Tourism Marketing,LT100,Cleaning Materials,3600,Various Items,13/09/2016,422618,35.71,NET,Acs Business Supplies Ltd,15791M
Gloucester City Council,23UE,Asset Management,RS300,Basic Pay - Temporary Staff,2751,Consultancy Services August 16,14/09/2016,423555,7218.8,NET,Ardley Associates,09369F
Gloucester City Council,23UE,REDACTED,REDACTED,REDACTED,REDACTED,REDACTED,14/09/2016,REDACTED,50.5,NET,REDACTED,REDACTED
Gloucester City Council,23UE,Cemeteries,HC300,Operational Materials,5070,golden nuggett,14/09/2016,422210,117,NET,Allstone Sand & Gravel Aggregates Ltd,00940M
Gloucester City Council,23UE,Cemeteries,HC300,Routine R And M - Vehicles,4011,Strimmer,14/09/2016,423502,45,NET,Garden Machinery Gloucester,55641K
Gloucester City Council,23UE,Cemeteries,HC300,Routine R And M - Vehicles,4011,Various Items,14/09/2016,423553,60.19,NET,Garden Machinery Gloucester,55641K
Gloucester City Council,23UE,City Museum And Art Gallery,LM200,Operational Equipment <5000,5012,Thermal Rolls,14/09/2016,423474,33.6,NET,Premier Vanguard,50248R
Gloucester City Council,23UE,City Museum And Art Gallery,LM200,Security Services Fees,5351,intruder redcare quarterly maintenance,14/09/2016,422217,317.28,NET,Secom Plc,51471A
Gloucester City Council,23UE,City Museum And Art Gallery,LM200,Security Services Fees,5351,quarterly rental maintenance,14/09/2016,422218,46.31,NET,Secom Plc,51471A
Gloucester City Council,23UE,City Museum Catering,LM202,Catering Provisions -Food,5110,Coffee Beans,14/09/2016,423478,95.75,NET,James Gourmet Coffee Co.,55049A
Gloucester City Council,23UE,City Museum Catering,LM202,Catering Provisions -Food,5110,Milk,14/09/2016,423479,7.14,NET,Total Produce Gloucester,12645E
Gloucester City Council,23UE,City Museum Catering,LM202,Catering Provisions -Food,5110,Milk,14/09/2016,423480,4.76,NET,Total Produce Gloucester,12645E
Gloucester City Council,23UE,City Museum Catering,LM202,Catering Provisions -Food,5110,Milk,14/09/2016,423481,4.76,NET,Total Produce Gloucester,12645E
Gloucester City Council,23UE,City Museum Catering,LM202,Catering Provisions -Food,5110,Milk,14/09/2016,423482,4.76,NET,Total Produce Gloucester,12645E
Gloucester City Council,23UE,City Museum Catering,LM202,Catering Provisions -Food,5110,Milk,14/09/2016,423483,4.76,NET,Total Produce Gloucester,12645E
Gloucester City Council,23UE,City Museum Catering,LM202,Catering Provisions -Food,5110,Milk,14/09/2016,423484,7.14,NET,Total Produce Gloucester,12645E
Gloucester City Council,23UE,City Museum Catering,LM202,Catering Provisions -Food,5110,Milk,14/09/2016,423485,4.76,NET,Total Produce Gloucester,12645E
Gloucester City Council,23UE,City Museum Catering,LM202,Catering Provisions -Food,5110,Milk,14/09/2016,423486,4.76,NET,Total Produce Gloucester,12645E
Gloucester City Council,23UE,City Museum Catering,LM202,Catering Provisions -Food,5110,Milk,14/09/2016,423487,7.14,NET,Total Produce Gloucester,12645E
Gloucester City Council,23UE,City Museum Catering,LM202,Catering Provisions -Food,5110,Milk,14/09/2016,423488,4.76,NET,Total Produce Gloucester,12645E
Gloucester City Council,23UE,City Museum Catering,LM202,Catering Provisions -Food,5110,Milk,14/09/2016,423489,4.76,NET,Total Produce Gloucester,12645E
Gloucester City Council,23UE,City Museum Catering,LM202,Catering Provisions -Food,5110,Milk,14/09/2016,423490,7.14,NET,Total Produce Gloucester,12645E
Gloucester City Council,23UE,City Museum Catering,LM202,Catering Provisions -Food,5110,Milk,14/09/2016,423491,4.76,NET,Total Produce Gloucester,12645E
Gloucester City Council,23UE,City Museum Catering,LM202,Catering Provisions -Food,5110,Milk,14/09/2016,423492,7.14,NET,Total Produce Gloucester,12645E
Gloucester City Council,23UE,City Museum Catering,LM202,Other Catering Provisions,5112,Coffee Beans,14/09/2016,423419,84.5,NET,James Gourmet Coffee Co.,55049A
Gloucester City Council,23UE,Civica Contract Revs & Bens,RT250,Fees For Services Received,5350,NI charges - ceasing of rebate,14/09/2016,421488,4554.6,NET,Civica Uk Ltd,10841X
Gloucester City Council,23UE,Docks Complex - Services,RB100,Catering Provisions -Food,5110,Food,14/09/2016,423510,18.44,NET,Janes Pantry,24500W
Gloucester City Council,23UE,Docks Complex - Services,RB100,Catering Provisions -Food,5110,Food,14/09/2016,423511,11.9,NET,Janes Pantry,24500W
Gloucester City Council,23UE,Docks Complex - Services,RB100,Catering Provisions -Food,5110,Food,14/09/2016,423512,14.54,NET,Janes Pantry,24500W
Gloucester City Council,23UE,Docks Complex - Services,RB100,Catering Provisions -Food,5110,Food,14/09/2016,423513,18.44,NET,Janes Pantry,24500W
Gloucester City Council,23UE,Docks Complex - Services,RB100,Catering Provisions -Food,5110,Food,14/09/2016,423514,10.49,NET,Janes Pantry,24500W
Gloucester City Council,23UE,Docks Complex - Services,RB100,Catering Provisions -Food,5110,Food,14/09/2016,423515,14.98,NET,Janes Pantry,24500W
Gloucester City Council,23UE,Docks Complex - Services,RB100,Catering Provisions -Food,5110,Food,14/09/2016,423516,14.12,NET,Janes Pantry,24500W
Gloucester City Council,23UE,Docks Complex - Services,RB100,Catering Provisions -Food,5110,Food,14/09/2016,423517,18.44,NET,Janes Pantry,24500W
Gloucester City Council,23UE,Docks Complex - Services,RB100,Catering Provisions -Food,5110,Food,14/09/2016,423518,11.74,NET,Janes Pantry,24500W
Gloucester City Council,23UE,Docks Complex - Services,RB100,Catering Provisions -Food,5110,Food,14/09/2016,423519,10.24,NET,Janes Pantry,24500W
Gloucester City Council,23UE,Docks Complex - Services,RB100,Catering Provisions -Food,5110,Food,14/09/2016,423520,18.44,NET,Janes Pantry,24500W
Gloucester City Council,23UE,Docks Complex - Services,RB100,Catering Provisions -Food,5110,Food,14/09/2016,423521,12.86,NET,Janes Pantry,24500W
Gloucester City Council,23UE,Docks Complex - Services,RB100,Catering Provisions -Food,5110,Food,14/09/2016,423522,14.6,NET,Janes Pantry,24500W
Gloucester City Council,23UE,Docks Complex - Services,RB100,Catering Provisions -Food,5110,Food,14/09/2016,423523,9.52,NET,Janes Pantry,24500W
Gloucester City Council,23UE,Docks Complex - Services,RB100,Catering Provisions -Food,5110,Food,14/09/2016,423524,12.79,NET,Janes Pantry,24500W
Gloucester City Council,23UE,Docks Complex - Services,RB100,Catering Provisions -Food,5110,Food,14/09/2016,423525,9.64,NET,Janes Pantry,24500W
Gloucester City Council,23UE,Docks Complex - Services,RB100,Catering Provisions -Food,5110,Food,14/09/2016,423526,13.25,NET,Janes Pantry,24500W
Gloucester City Council,23UE,Docks Complex - Services,RB100,Catering Provisions -Food,5110,Food,14/09/2016,423527,18.44,NET,Janes Pantry,24500W
Gloucester City Council,23UE,Docks Complex - Services,RB100,Catering Provisions -Food,5110,Food,14/09/2016,423528,20.87,NET,Total Produce Gloucester,12645E
Gloucester City Council,23UE,Docks Complex - Services,RB100,Catering Provisions -Food,5110,Food,14/09/2016,423529,60.19,NET,Total Produce Gloucester,12645E
Gloucester City Council,23UE,Docks Complex - Services,RB100,Catering Provisions -Food,5110,Food,14/09/2016,423530,22.48,NET,Total Produce Gloucester,12645E
Gloucester City Council,23UE,Docks Complex - Services,RB100,Catering Provisions -Food,5110,Food,14/09/2016,423531,29.57,NET,Total Produce Gloucester,12645E
Gloucester City Council,23UE,Docks Complex - Services,RB100,Catering Provisions -Food,5110,Food,14/09/2016,423532,58.92,NET,Total Produce Gloucester,12645E
Gloucester City Council,23UE,Docks Complex - Services,RB100,Catering Provisions -Food,5110,Food,14/09/2016,423533,37.2,NET,Total Produce Gloucester,12645E
Gloucester City Council,23UE,Docks Complex - Services,RB100,Catering Provisions -Food,5110,Food,14/09/2016,423534,53.65,NET,Total Produce Gloucester,12645E
Gloucester City Council,23UE,Docks Complex - Services,RB100,Catering Provisions -Food,5110,Food,14/09/2016,423535,24.31,NET,Total Produce Gloucester,12645E
Gloucester City Council,23UE,Docks Complex - Services,RB100,Catering Provisions -Food,5110,Food,14/09/2016,423536,21.93,NET,Total Produce Gloucester,12645E
Gloucester City Council,23UE,Docks Complex - Services,RB100,Catering Provisions -Food,5110,Food,14/09/2016,423539,8.64,NET,Total Produce Gloucester,12645E
Gloucester City Council,23UE,Docks Complex - Services,RB100,Catering Provisions -Food,5110,Food,14/09/2016,423540,14.61,NET,Total Produce Gloucester,12645E
Gloucester City Council,23UE,Docks Complex - Services,RB100,Catering Provisions -Food,5110,Food,14/09/2016,423541,37.34,NET,Total Produce Gloucester,12645E
Gloucester City Council,23UE,Docks Complex - Services,RB100,Catering Provisions -Food,5110,Food,14/09/2016,423542,16.99,NET,Total Produce Gloucester,12645E
Gloucester City Council,23UE,Docks Complex - Services,RB100,Catering Provisions -Food,5110,Food,14/09/2016,423543,47.3,NET,Total Produce Gloucester,12645E
Gloucester City Council,23UE,Docks Complex - Services,RB100,Catering Provisions -Food,5110,Food,14/09/2016,423544,16.68,NET,Total Produce Gloucester,12645E
Gloucester City Council,23UE,Docks Complex - Services,RB100,Catering Provisions -Food,5110,Food,14/09/2016,423545,74.08,NET,Total Produce Gloucester,12645E
Gloucester City Council,23UE,Docks Complex - Services,RB100,Catering Provisions -Food,5110,Food,14/09/2016,423546,75.19,NET,Total Produce Gloucester,12645E
Gloucester City Council,23UE,Docks Complex - Services,RB100,Catering Provisions -Food,5110,Food,14/09/2016,423547,33.95,NET,Total Produce Gloucester,12645E
Gloucester City Council,23UE,Docks Complex - Services,RB100,Catering Provisions -Food,5110,Food,14/09/2016,423548,226.77,NET,Bidvest Foodservice (3663),55585U
Gloucester City Council,23UE,Docks Complex - Services,RB100,Catering Provisions -Food,5110,Food,14/09/2016,423549,99.68,NET,Bidvest Foodservice (3663),55585U
Gloucester City Council,23UE,Docks Complex - Services,RB100,Catering Provisions -Food,5110,Food,14/09/2016,423550,152.44,NET,Bidvest Foodservice (3663),55585U
Gloucester City Council,23UE,Docks Complex - Services,RB100,Catering Provisions -Food,5110,Food,14/09/2016,423551,127.5,NET,Bidvest Foodservice (3663),55585U
Gloucester City Council,23UE,Docks Complex - Services,RB100,Catering Provisions -Food,5110,Food,14/09/2016,423552,183.2,NET,Bidvest Foodservice (3663),55585U
Gloucester City Council,23UE,Flooding And Drainage,HE306,Other Minor Supplies Services,5590,Knotweed - Horsbere Meadow,14/09/2016,423507,45,NET,Greenfields Garden Services Ltd,48130G
Gloucester City Council,23UE,Guildhall Bar And Caf�,LA210,Catering Provisions -Food,5110,Food w/e 07/08/2016,14/09/2016,422726,20.7,NET,Janes Pantry,24500W
Gloucester City Council,23UE,Guildhall Bar And Caf�,LA210,Catering Provisions -Food,5110,Food w/e 14/08/2016,14/09/2016,422734,27.3,NET,Janes Pantry,24500W
Gloucester City Council,23UE,Guildhall Bar And Caf�,LA210,Catering Provisions -Food,5110,milk,14/09/2016,423193,4.76,NET,Total Produce Gloucester,12645E
Gloucester City Council,23UE,Guildhall Cinema,LA202,Hire Of Equipment,5020,Monthly Film Charge,14/09/2016,423509,219.59,NET,Nft Logistics Ltd,13505N
Gloucester City Council,23UE,REDACTED,REDACTED,REDACTED,REDACTED,REDACTED,14/09/2016,REDACTED,200,NET,REDACTED,REDACTED
Gloucester City Council,23UE,REDACTED,REDACTED,REDACTED,REDACTED,REDACTED,14/09/2016,REDACTED,88.56,NET,REDACTED,REDACTED
Gloucester City Council,23UE,REDACTED,REDACTED,REDACTED,REDACTED,REDACTED,14/09/2016,REDACTED,400,NET,REDACTED,REDACTED
Gloucester City Council,23UE,Internal Communications,RC430,Events,5952,Event Programme 16/17,14/09/2016,422774,40000,NET,Marketing Gloucester Ltd,08925E
Gloucester City Council,23UE,Marketing Gloucester Charges,RC433,Events,5952,Grant for Three Choirs Festival,14/09/2016,423021,5000,NET,Marketing Gloucester Ltd,08925E
Gloucester City Council,23UE,Planning Policy & Heritage,PT300,Fees For Services Received,5350,Annual Contribution,14/09/2016,422528,195000,NET,Cheltenham Borough Council,04176B
Gloucester City Council,23UE,REDACTED,REDACTED,REDACTED,REDACTED,REDACTED,14/09/2016,REDACTED,30,NET,REDACTED,REDACTED
Gloucester City Council,23UE,Retail Market - Landlord,HM300,Trade Refuse Collection,3630,Rental September 2016,14/09/2016,423360,398.21,NET,System Rental Uk Ltd,03239E
Gloucester City Council,23UE,The Arbor,HC501,Catering Provisions -Food,5110,food,14/09/2016,423116,141.48,NET,Janes Pantry,24500W
Gloucester City Council,23UE,Tic Trading,LT110,Materials For Sale,5080,2017 calendars,14/09/2016,422521,272.52,NET,Judge Sampson Ltd,14513E
Gloucester City Council,23UE,Business Transformation & Tech,RT700,Computer Software <5000,5425,Maintenance,15/09/2016,423344,4015.8,NET,Apt Ltd,16237L
Gloucester City Council,23UE,Civica Contract Revs & Bens,RT250,Fees For Services Received,5350,Revs and Bens December 2016,15/09/2016,423339,137797,NET,Civica Uk Ltd,10841X
Gloucester City Council,23UE,Civica Contract Revs & Bens,RT250,Fees For Services Received,5350,Revs and Bens November 2016,15/09/2016,423340,137797,NET,Civica Uk Ltd,10841X
Gloucester City Council,23UE,Client Revs & Bens Contract,RT240,Fees For Services Received,5350,Annual Maintenance Fee,15/09/2016,423471,30,NET,Uk Payments Administration Ltd,53691N
Gloucester City Council,23UE,Contact Centre,RB300,Stationery,5302,Stationary,15/09/2016,423465,54.6,NET,Lyreco Uk Ltd,11746G
Gloucester City Council,23UE,Crematorium,HC200,Memorial Plaques,5053,Plaques,15/09/2016,423346,235,NET,Steel & Stone (York),57204U
Gloucester City Council,23UE,Crematorium,HC200,"Seeds, Trees, Plants, Shrubs",3028,Weeping Cherry,15/09/2016,423438,28.5,NET,Genus Plant Sourcing,14143S
Gloucester City Council,23UE,Financial Services,RT200,Consultants Fees,5349,Consultancy Days,15/09/2016,423350,33325,NET,Civica Uk Ltd,10841X
Gloucester City Council,23UE,REDACTED,REDACTED,REDACTED,REDACTED,REDACTED,15/09/2016,REDACTED,120,NET,REDACTED,REDACTED
Gloucester City Council,23UE,Homelessness Prevention,CH122,Fees For Services Received,5350,Housing Deposit,15/09/2016,423625,300,NET,REDACTED,REDACTED
Gloucester City Council,23UE,REDACTED,REDACTED,REDACTED,REDACTED,REDACTED,15/09/2016,REDACTED,450,NET,REDACTED,REDACTED
Gloucester City Council,23UE,REDACTED,REDACTED,REDACTED,REDACTED,REDACTED,15/09/2016,REDACTED,160,NET,REDACTED,REDACTED
Gloucester City Council,23UE,Investment Property,RB500,Lift Maintenance,3051,Engineer 09/08/2016,15/09/2016,423560,56.25,NET,Pickerings Europe Ltd,58816U
Gloucester City Council,23UE,Kings Quarter,RY146,Contract Payments,0020,Retension Release,15/09/2016,423343,4465.31,CAP,Talus Construction Ltd,10401G
Gloucester City Council,23UE,Marketing Gloucester Charges,RC433,Events,5952,Grants,15/09/2016,423022,7296.08,NET,Marketing Gloucester Ltd,08925E
Gloucester City Council,23UE,National Express,LT105,Materials For Sale,5080,Tickets August 16,15/09/2016,423473,13091.65,NET,National Express Ltd,31455K
Gloucester City Council,23UE,National Express,LT105,Sale Of Goods And Services,9230,Tickets August 16,15/09/2016,423473,-1137.42,NET,National Express Ltd,31455K
Gloucester City Council,23UE,REDACTED,REDACTED,REDACTED,REDACTED,REDACTED,15/09/2016,REDACTED,200,NET,REDACTED,REDACTED
Gloucester City Council,23UE,Printing,RP103,Printing,5300,Newsletters,15/09/2016,423345,327,NET,Alpha Colour Printers Ltd,00945B
Gloucester City Council,23UE,Printing,RP103,Printing,5300,Print Jobs Jul - Aug 2016,15/09/2016,423567,533.2,NET,Gloucestershire County Council,18650D
Gloucester City Council,23UE,The Arbor,HC501,Catering Provisions -Food,5110,Food w/e 04/09/2016,15/09/2016,423565,91.46,NET,Janes Pantry,24500W
Gloucester City Council,23UE,Client Revs & Bens Contract,RT240,Fees For Services Received,5350,FERIS Maintenance Fund,16/09/2016,423380,23934,NET,Civica Uk Ltd,10841X
Gloucester City Council,23UE,Client Revs & Bens Contract,RT240,Fees For Services Received,5350,New Burdens Payment 16/17,16/09/2016,423375,693,NET,Civica Uk Ltd,10841X
Gloucester City Council,23UE,Client Revs & Bens Contract,RT240,Fees For Services Received,5350,Open Revenues,16/09/2016,423377,3430,NET,Civica Uk Ltd,10841X
Gloucester City Council,23UE,Contact Centre,RB300,Basic Pay - Temporary Staff,2751,Benefits Frontline Cover,16/09/2016,423379,4000,NET,Civica Uk Ltd,10841X
Gloucester City Council,23UE,Contact Centre,RB300,Postages,5400,Post 12/08 - 01/09 2016,16/09/2016,423561,1166,NET,Royal Mail S.Wales & South West,35830S
Gloucester City Council,23UE,Countryside Unit,LP201,Contract Cleaning,3620,ranger centre cleaning,16/09/2016,423147,130,NET,Cv Fisher Cleaning Services,14907C
Gloucester City Council,23UE,Docks Complex - Services,RB100,Cctv Servicing & Maint,3016,Site Attendance jun 16,16/09/2016,422788,739.98,NET,Key Intergrated Systems Ltd,17166Z
Gloucester City Council,23UE,Green Garden Waste,HI105,Fees For Services Received,5350,Garden Waste Service,16/09/2016,423378,38000,NET,Civica Uk Ltd,10841X
Gloucester City Council,23UE,REDACTED,REDACTED,REDACTED,REDACTED,REDACTED,16/09/2016,REDACTED,100,NET,REDACTED,REDACTED
Gloucester City Council,23UE,REDACTED,REDACTED,REDACTED,REDACTED,REDACTED,16/09/2016,REDACTED,152.61,NET,REDACTED,REDACTED
Gloucester City Council,23UE,REDACTED,REDACTED,REDACTED,REDACTED,REDACTED,16/09/2016,REDACTED,295.6,NET,REDACTED,REDACTED
Gloucester City Council,23UE,REDACTED,REDACTED,REDACTED,REDACTED,REDACTED,16/09/2016,REDACTED,21,NET,REDACTED,REDACTED
Gloucester City Council,23UE,REDACTED,REDACTED,REDACTED,REDACTED,REDACTED,16/09/2016,REDACTED,123.67,NET,REDACTED,REDACTED
Gloucester City Council,23UE,REDACTED,REDACTED,REDACTED,REDACTED,REDACTED,16/09/2016,REDACTED,132.78,NET,REDACTED,REDACTED
Gloucester City Council,23UE,REDACTED,REDACTED,REDACTED,REDACTED,REDACTED,16/09/2016,REDACTED,126.8,NET,REDACTED,REDACTED
Gloucester City Council,23UE,Homelessness Prevention,CH122,Fees For Services Received,5350,housing deposit,16/09/2016,423644,350,NET,REDACTED,REDACTED
Gloucester City Council,23UE,Internal Audit,RT300,Fees For Services Received,5350,Internal Audit Shared Service,16/09/2016,423564,45238.25,NET,Gloucestershire County Council,18650D
Gloucester City Council,23UE,Investment Property,RB500,Gas Fittings Serv/Repair,3052,Museum Repairs,16/09/2016,419226,5995.52,NET,Axiom Building Services,14908A
Gloucester City Council,23UE,Investment Property,RB500,Gas Fittings Serv/Repair,3052,Museum Repairs,16/09/2016,423647,4074.26,NET,Axiom Building Services,14908A
Gloucester City Council,23UE,Museum Phase 2 Hlf,GY001,Contract Payments,0020,Fees,16/09/2016,423645,4500,CAP,Architecton Ltd,16466T
Gloucester City Council,23UE,Council Streetcare Team,HI101,Water Supply,3400,Standpipe at the park A/C 6480048672,19/09/2016,423125,526.02,NET,Severn Trent Water,01823H
Gloucester City Council,23UE,Financial Services,RT200,Fees For Services Received,5350,VAT due on invoice,19/09/2016,423081,0,NET,Wansbroughs Solicitors,55500F
Gloucester City Council,23UE,Homelessness,CH120,Rent In Advance,5516,RIA & Deposit,19/09/2016,423659,489.44,NET,Martin & Co,64118Y
Gloucester City Council,23UE,Homelessness Prevention,CH122,Fees For Services Received,5350,RIA & Deposit,19/09/2016,423659,500,NET,Martin & Co,64118Y
Gloucester City Council,23UE,Investment Property,RB500,Water Supply,3400,Swiss Cottage In The Park A/C 6540022682,19/09/2016,423107,372.56,NET,Severn Trent Water,01823H
Gloucester City Council,23UE,Nms Contract,HI102,Contracted Services,6970,Commodity Aug 16,19/09/2016,423409,25856,NET,Enterprise (Aol) Ltd,06695G
Gloucester City Council,23UE,Nms Contract,HI102,Contracted Services,6970,September Service Fee,19/09/2016,423404,478446.3,NET,Enterprise (Aol) Ltd,06695G
Gloucester City Council,23UE,Treasury Management,VR110,Brokerage Fees,5951,Cash Deposit,19/09/2016,423134,1695.9,NET,Martin Brokers (Uk) Plc,51416J
Gloucester City Council,23UE,Aspire Admin Charges,LC105,Contracted Services,6970,Monthly Charge September 16,20/09/2016,423402,38125.58,NET,Aspire Sports & Cultural Trust,08135V
Gloucester City Council,23UE,Aspire Admin Charges,LC105,Fees For Services Received,5350,Staff Memberships August 16,20/09/2016,423475,464,NET,Aspire Sports & Cultural Trust,08135V
Gloucester City Council,23UE,Blackfriars,LA609,Contract Cleaning,3620,Cleaning August 16,20/09/2016,423337,520,NET,Into Cleaning,14609P
Gloucester City Council,23UE,Cemeteries,HC300,Basic Pay - Temporary Staff,2751,Temporary staff w/e 28/08/2016,20/09/2016,423367,439.88,NET,Premiere Employment Group Ltd,55468Z
Gloucester City Council,23UE,Cemeteries,HC300,Basic Pay - Temporary Staff,2751,Temporary staff w/e 28/08/2016,20/09/2016,423368,351.9,NET,Premiere Employment Group Ltd,55468Z
Gloucester City Council,23UE,Client Revs & Bens Contract,RT240,Bailiffs Fees,5368,VAT due on statutory fees,20/09/2016,423395,0,NET,Bristow & Sutor,05450M
Gloucester City Council,23UE,Coll Fund Revenue Account,ZC100,County Council Precept,7460,precept payment due 5th October 2016,20/09/2016,423714,4168751.7,NET,Gloucestershire County Council,18650D
Gloucester City Council,23UE,Coll Fund Revenue Account,ZC100,Nndr Central Share,7474,brr pooling payment due 19/10/16,20/09/2016,423719,424982,NET,Gloucestershire County Council,18650D
Gloucester City Council,23UE,Coll Fund Revenue Account,ZC100,Nndr Tariff,7473,brr pooling payment due 19/10/16,20/09/2016,423720,1331309,NET,Stroud District Council,74737T
Gloucester City Council,23UE,Coll Fund Revenue Account,ZC100,Police Precept,7461,precept payment due 5th October 2016,20/09/2016,423715,773478.2,NET,"Police & Crime Commissioner, Gloucestershire",49521B
Gloucester City Council,23UE,Corporate Reporting /Financing,RC504,Audit Fees,5383,Audit Statement of Accounts Q2,20/09/2016,423503,15862.5,NET,Kpmg,06498X
Gloucester City Council,23UE,Corporate Reporting /Financing,RC504,Audit Fees,5383,Grant Claims 16/17 Q2,20/09/2016,423504,1760.75,NET,Kpmg,06498X
Gloucester City Council,23UE,Corporate Reporting /Financing,RC504,Fees For Services Received,5350,Childcare Vouchers,20/09/2016,423341,49.62,NET,Wider Plan Ltd ( Formerly Kiddivouchers),07893B
Gloucester City Council,23UE,Development Management,PT200,Microfilming / Cd-Rom Storage,5330,Storage August 2016,20/09/2016,423400,22,NET,Transmedia Technology Ltd,08635T
Gloucester City Council,23UE,Docks Complex - Services,RB100,Lift Maintenance,3051,Engineer 02/08/2016,20/09/2016,423468,56.25,NET,Pickerings Europe Ltd,58816U
Gloucester City Council,23UE,Docks Complex - Services,RB100,Lift Maintenance,3051,Engineer 05/08/2016,20/09/2016,423469,75,NET,Pickerings Europe Ltd,58816U
Gloucester City Council,23UE,Docks Complex - Services,RB100,Lift Maintenance,3051,Engineer 08/08/2016,20/09/2016,423470,37.5,NET,Pickerings Europe Ltd,58816U
Gloucester City Council,23UE,Docks Complex - Services,RB100,Lift Maintenance,3051,Engineer 12/08/2016,20/09/2016,423466,93.75,NET,Pickerings Europe Ltd,58816U
Gloucester City Council,23UE,Docks Complex - Services,RB100,Lift Maintenance,3051,Engineer 22/07/2016,20/09/2016,423574,75,NET,Pickerings Europe Ltd,58816U
Gloucester City Council,23UE,Docks Complex - Services,RB100,Lift Maintenance,3051,Works 08/07/2016,20/09/2016,423463,1649.5,NET,Pickerings Europe Ltd,58816U
Gloucester City Council,23UE,Employers Pension Contribs,ZR355,Pension Contribs Incl Backf,2901,pension deficit payment for September 16,20/09/2016,423718,238916.67,NET,Gloucestershire County Council,10614L
Gloucester City Council,23UE,Financial Services,RT200,Consultants Fees,5349,Consultancy Expenses,20/09/2016,423020,492.04,NET,Civica Uk Ltd,10841X
Gloucester City Council,23UE,Flood Defence Int Drain B Levy,PS111,South Glos. Drainage Board,7462,land drainage levy for 2016/17,20/09/2016,423721,29504.25,NET,Lower Severn Drainage Board,04918R
Gloucester City Council,23UE,General Drainage Works,PY241,Contract Payments,0020,replace sluice,20/09/2016,422215,168,CAP,Nailsworth Services Ltd,16507E
Gloucester City Council,23UE,Gloucester Guildhall,LA100,General Repair/Maint Buildings,3000,Extension Socket,20/09/2016,423411,38.91,NET,Cpc,52980M
Gloucester City Council,23UE,Gloucester Guildhall,LA100,General Repair/Maint Buildings,3000,Safety Bond,20/09/2016,423412,0.26,NET,Cpc,52980M
Gloucester City Council,23UE,Gloucester Guildhall,LA100,General Repair/Maint Buildings,3000,Safety Bond,20/09/2016,423413,36,NET,Cpc,52980M
Gloucester City Council,23UE,Gloucester Guildhall,LA100,Maintenance Of Equipment,5030,Safety Bond,20/09/2016,423412,26.24,NET,Cpc,52980M
Gloucester City Council,23UE,Homelessness,CH120,Removal And Storage Fees,5513,storage fees Aug 16,20/09/2016,423397,399.38,NET,Advanced Removals & Storage Ltd,57142R
Gloucester City Council,23UE,Homelessness,CH120,Removal And Storage Fees,5513,Storage August 2016,20/09/2016,423396,257.46,NET,Advanced Removals & Storage Ltd,57142R
Gloucester City Council,23UE,Housing Works In Default,HD500,Clearance And Cleansing Fees,5384,Fairmile Gdns clearance works,20/09/2016,423435,2130,NET,Rj Contracting (Environmental) Ltd,07429H
Gloucester City Council,23UE,Interest Payable,VR100,Bae Systems Pension Fund,7822,half yearly interest due on BAE loan,20/09/2016,423717,69314.38,NET,Nortrust Nominees Ltd,15996R
Gloucester City Council,23UE,Interest Payable,VR100,Bae Systems Pension Fund,7822,half yearly interest on BAE loan,20/09/2016,423716,29706.16,NET,Nortrust Nominees Ltd,15996R
Gloucester City Council,23UE,Investment Property,RB500,Lift Maintenance,3051,Engineer 10/08/2016,20/09/2016,423538,93.75,NET,Pickerings Europe Ltd,58816U
Gloucester City Council,23UE,Investment Property,RB500,Lift Maintenance,3051,Engineer 21/07/2016,20/09/2016,423467,141.87,NET,Pickerings Europe Ltd,58816U
Gloucester City Council,23UE,Managing Director,RE100,Subscriptions,5600,MJ subscription 2016/17,20/09/2016,423131,140,NET,Hemming Group Ltd,48192H
Gloucester City Council,23UE,Nms Contract,HI102,Contracted Services,6970,Underpayment for commodity income,20/09/2016,422646,11686,NET,Enterprise (Aol) Ltd,06695G
Gloucester City Council,23UE,Ranger Centre/Netheridge Wks,RY167,Contract Payments,0020,tools,20/09/2016,422161,122.47,CAP,Lazy Dog Tools Ltd,17175Y
Gloucester City Council,23UE,REDACTED,REDACTED,REDACTED,REDACTED,REDACTED,21/09/2016,REDACTED,35,NET,REDACTED,REDACTED
Gloucester City Council,23UE,Blackfriars,LA609,Hire Of Equipment,5020,tablecloth hire,21/09/2016,423447,76,NET,Gloucester Event Hire,56935D
Gloucester City Council,23UE,Blackfriars Weddings,LA220,Hire Of Equipment,5020,glass hire,21/09/2016,423444,94.48,NET,Gloucester Event Hire,56935D
Gloucester City Council,23UE,Business Transformation & Tech,RT700,Conference/Meeting Expenses,5510,polycom soundstation duo,21/09/2016,423426,484.36,NET,Rocom,56066R
Gloucester City Council,23UE,Cctv Revenue Budget,FP501,Security Equipment Serv/Repair,3038,CCTV camera installation,21/09/2016,423571,225,NET,W And N Adams Ltd,16216V
Gloucester City Council,23UE,Cemeteries,HC300,Clothing,5200,Boots,21/09/2016,423415,122.14,NET,Safpro Industrial Supply Co,39190W
Gloucester City Council,23UE,Cemeteries,HC300,Routine R And M - Vehicles,4011,strimmer repairs,21/09/2016,423668,93.2,NET,Garden Machinery Gloucester,55641K
Gloucester City Council,23UE,City Museum And Art Gallery,LM200,Advertising And Publicity,5702,2016 advert campaign,21/09/2016,423686,750,NET,Soglos,07953J
Gloucester City Council,23UE,City Museum And Art Gallery,LM200,Exhibits And Collections,5038,A1 sponsor boards,21/09/2016,423441,90,NET,Alpha Colour Printers Ltd,00945B
Gloucester City Council,23UE,Civica Contract Revs & Bens,RT250,Contracted Services,6970,Pension excess AUG16,21/09/2016,423692,10802.81,NET,Civica Uk Ltd,10841X
Gloucester City Council,23UE,Civica It Contract,RT270,Contracted Services,6970,IT managed service charges OCT16,21/09/2016,423253,48061.14,NET,Civica Uk Ltd,10841X
Gloucester City Council,23UE,Civica It Contract,RT270,Contracted Services,6970,Pension excess Aug16,21/09/2016,423691,875.82,NET,Civica Uk Ltd,10841X
Gloucester City Council,23UE,Client Revs & Bens Contract,RT240,Computer Software <5000,5425,kiosk upgrade,21/09/2016,423448,180,NET,Banking Automation Ltd,10352U
Gloucester City Council,23UE,Contact Centre,RB300,Stationery,5302,stationery,21/09/2016,423458,16.65,NET,Lyreco Uk Ltd,11746G
Gloucester City Council,23UE,Council Streetcare Team,HI101,Maint Of Grounds - General,3030,birdfood,21/09/2016,423442,38.32,NET,Angell Pets Ltd,15773P
Gloucester City Council,23UE,Council Streetcare Team,HI101,Maint Of Grounds - General,3030,birdfood,21/09/2016,423443,18.49,NET,Angell Pets Ltd,15773P
Gloucester City Council,23UE,Council Streetcare Team,HI101,Maint Of Grounds - General,3030,Saintbridge - new bin,21/09/2016,423369,110,NET,Greenfields Garden Services Ltd,48130G
Gloucester City Council,23UE,Council Streetcare Team,HI101,Maint Of Grounds - General,3030,Waste Bin Installations,21/09/2016,423370,650,NET,Greenfields Garden Services Ltd,48130G
Gloucester City Council,23UE,Council Streetcare Team,HI101,Operational Materials,5070,Barnwood Avenue- Removal of tree,21/09/2016,422644,750,NET,Greenfields Garden Services Ltd,48130G
Gloucester City Council,23UE,Countryside Unit,LP201,Maint Of Grounds - General,3030,Shearbolt,21/09/2016,423476,25.75,NET,Ross Farm Machinery,02153B
Gloucester City Council,23UE,Countryside Unit,LP201,Routine R And M - Vehicles,4011,parts,21/09/2016,423424,216.14,NET,Loxston Groundcare,14309F
Gloucester City Council,23UE,Crematorium,HC200,Book Of Memory,5055,memorial,21/09/2016,423675,39.81,NET,Hilton Cabinet Co Ltd,21910A
Gloucester City Council,23UE,Crematorium,HC200,Memorial Plaques,5053,plaque,21/09/2016,423449,54,NET,Arkell & Hurcombe,59812T
Gloucester City Council,23UE,Crematorium,HC200,Memorial Plaques,5053,plaque,21/09/2016,423451,58,NET,Arkell & Hurcombe,59812T
Gloucester City Council,23UE,Crematorium,HC200,Memorial Plaques,5053,plaque,21/09/2016,423452,198,NET,Arkell & Hurcombe,59812T
Gloucester City Council,23UE,Crematorium,HC200,Memorial Plaques,5053,plaque,21/09/2016,423453,58,NET,Arkell & Hurcombe,59812T
Gloucester City Council,23UE,Crematorium,HC200,Memorial Plaques,5053,plaque,21/09/2016,423454,300,NET,Arkell & Hurcombe,59812T
Gloucester City Council,23UE,Crematorium,HC200,Memorial Plaques,5053,plaque,21/09/2016,423455,374,NET,Arkell & Hurcombe,59812T
Gloucester City Council,23UE,Crematorium,HC200,Memorial Plaques,5053,plaque,21/09/2016,423456,54,NET,Arkell & Hurcombe,59812T
Gloucester City Council,23UE,Crematorium,HC200,Memorial Plaques,5053,plaque,21/09/2016,423672,198,NET,Arkell & Hurcombe,59812T
Gloucester City Council,23UE,Crematorium,HC200,Memorial Plaques,5053,tree plaque,21/09/2016,423450,54,NET,Arkell & Hurcombe,59812T
Gloucester City Council,23UE,Development Management,PT200,Advertising And Publicity,5702,adverts 25/8/16,21/09/2016,423427,175.3,NET,Local World Ltd,08556P
Gloucester City Council,23UE,Docks Complex - Services,RB100,Lift Maintenance,3051,staff side lift works,21/09/2016,422183,56.25,NET,Pickerings Europe Ltd,58816U
Gloucester City Council,23UE,Docks Complex - Services,RB100,Lift Maintenance,3051,staff side lift works,21/09/2016,422185,46.88,NET,Pickerings Europe Ltd,58816U
Gloucester City Council,23UE,Docks Complex - Services,RB100,Lift Maintenance,3051,staff side lift works,21/09/2016,422186,56.25,NET,Pickerings Europe Ltd,58816U
Gloucester City Council,23UE,Folk Museum,LM210,Advertising And Publicity,5702,2016 advert campaign,21/09/2016,423686,750,NET,Soglos,07953J
Gloucester City Council,23UE,Folk Museum,LM210,Exhibits And Collections,5038,life museum signage,21/09/2016,423461,120,NET,Alpha Colour Printers Ltd,00945B
Gloucester City Council,23UE,Food Safety,HE100,Fees For Services Received,5350,laundry,21/09/2016,423436,25,NET,Iron Maidens,02180Y
Gloucester City Council,23UE,Grants To Voluntary Sector,FG100,Members Allocation Fund,7100F,members allocation grant,21/09/2016,423797,500,NET,Waterwells Primary Academy,17209G
Gloucester City Council,23UE,REDACTED,REDACTED,REDACTED,REDACTED,REDACTED,21/09/2016,REDACTED,100,NET,REDACTED,REDACTED
Gloucester City Council,23UE,REDACTED,REDACTED,REDACTED,REDACTED,REDACTED,21/09/2016,REDACTED,123.54,NET,REDACTED,REDACTED
Gloucester City Council,23UE,REDACTED,REDACTED,REDACTED,REDACTED,REDACTED,21/09/2016,REDACTED,92,NET,REDACTED,REDACTED
Gloucester City Council,23UE,Homelessness,CH120,Fees For Services Received,5350,Lawtel Articles,21/09/2016,423422,12.6,NET,Thomson Reuters,43110M
Gloucester City Council,23UE,REDACTED,REDACTED,REDACTED,REDACTED,REDACTED,21/09/2016,REDACTED,530,NET,REDACTED,REDACTED
Gloucester City Council,23UE,Investment Property,RB500,Internal Decs - Communal Areas,3050,Guildhall stairlift works,21/09/2016,422182,75,NET,Pickerings Europe Ltd,58816U
Gloucester City Council,23UE,Investment Property,RB500,Lift Maintenance,3051,Blackfriars lift works,21/09/2016,422187,56.25,NET,Pickerings Europe Ltd,58816U
Gloucester City Council,23UE,Investment Property,RB500,Lift Maintenance,3051,public side lift works,21/09/2016,422184,121.88,NET,Pickerings Europe Ltd,58816U
Gloucester City Council,23UE,Investment Property,RB500,Lift Maintenance,3051,Works 31/08/2016,21/09/2016,423559,787.1,NET,Pickerings Europe Ltd,58816U
Gloucester City Council,23UE,Off Street Car Parks,PP110,Fees For Services Received,5350,September 2016,21/09/2016,423007,670.44,NET,Parkeon Ltd,03238G
Gloucester City Council,23UE,Pollution Control,HE300,Fees For Services Received,5350,NO2 tubes,21/09/2016,423684,20.1,NET,Gradko International Ltd,11063B
Gloucester City Council,23UE,Pollution Control,HE300,Fees For Services Received,5350,NO2 tubes,21/09/2016,423685,104.25,NET,Gradko International Ltd,11063B
Gloucester City Council,23UE,Retail Market - Landlord,HM300,Clothing,5200,workwear,21/09/2016,423665,82.01,NET,Safpro Industrial Supply Co,39190W
Gloucester City Council,23UE,Tic Trading,LT110,Materials For Sale,5080,DVDs for resale,21/09/2016,423680,245,NET,Quanta Ltd,06066B
Gloucester City Council,23UE,REDACTED,REDACTED,REDACTED,REDACTED,REDACTED,21/09/2016,REDACTED,274,NET,REDACTED,REDACTED
Gloucester City Council,23UE,Tourism Marketing,LT100,Window Cleaning,3610,TIC window cleaning,21/09/2016,423669,42.93,NET,Interserve Fs (Uk) Limited,00442K
Gloucester City Council,23UE,Blackfriars,LA609,Security Services Fees,5351,Door Staff August 2016,22/09/2016,423568,331.25,NET,Nsgl Ltd (Security Acct),12539E
Gloucester City Council,23UE,Cemeteries,HC300,Basic Pay - Temporary Staff,2751,temporary staff w/e 11/9/16,22/09/2016,423683,439.88,NET,Premiere Employment Group Ltd,55468Z
Gloucester City Council,23UE,Cemeteries,HC300,Basic Pay - Temporary Staff,2751,temporary staff w/e 11/9/16,22/09/2016,423682,439.88,NET,Premiere Employment Group Ltd,55468Z
Gloucester City Council,23UE,REDACTED,REDACTED,REDACTED,REDACTED,REDACTED,22/09/2016,REDACTED,179.4,NET,REDACTED,REDACTED
Gloucester City Council,23UE,REDACTED,REDACTED,REDACTED,REDACTED,REDACTED,22/09/2016,REDACTED,180,NET,REDACTED,REDACTED
Gloucester City Council,23UE,Dog Warden,HE400,Fees For Services Received,5350,Stray Dog Service July 2016,22/09/2016,423394,2826.26,NET,Bromsgrove District Council,15754U
Gloucester City Council,23UE,Grants To Voluntary Sector,FG100,Grants,7100C,community grant 2016/17,22/09/2016,423809,3535,NET,Together In Matson,53760RV
Gloucester City Council,23UE,REDACTED,REDACTED,REDACTED,REDACTED,REDACTED,22/09/2016,REDACTED,2200,NET,REDACTED,REDACTED
Gloucester City Council,23UE,REDACTED,REDACTED,REDACTED,REDACTED,REDACTED,22/09/2016,REDACTED,1000,NET,REDACTED,REDACTED
Gloucester City Council,23UE,Guildhall Events,LA200,Security Services Fees,5351,Door Staff August 2016,22/09/2016,423568,489.5,NET,Nsgl Ltd (Security Acct),12539E
Gloucester City Council,23UE,Homelessness,CH120,Board And Lodging,5515,various tenants,22/09/2016,423859,6878.09,NET,REDACTED,REDACTED
Gloucester City Council,23UE,Homelessness,CH120,Board And Lodging,5515,various tenants,22/09/2016,423863,5201.78,NET,Carbrey Housing Ltd,11098G
Gloucester City Council,23UE,Homelessness,CH120,Board And Lodging,5515,various tenants,22/09/2016,423866,2379.89,NET,Kalmwood Ltd,08568G
Gloucester City Council,23UE,Homelessness,CH120,Board And Lodging,5515,various tenants,22/09/2016,423870,2856.64,NET,Dorchester Guest House,12298D
Gloucester City Council,23UE,Homelessness,CH120,Board And Lodging,5515,various tenants,22/09/2016,423872,5987.4,NET,James Legge Property (Ltd),07844R
Gloucester City Council,23UE,REDACTED,REDACTED,REDACTED,REDACTED,REDACTED,22/09/2016,REDACTED,3782.6,NET,REDACTED,REDACTED
Gloucester City Council,23UE,REDACTED,REDACTED,REDACTED,REDACTED,REDACTED,22/09/2016,REDACTED,10474.81,NET,REDACTED,REDACTED
Gloucester City Council,23UE,REDACTED,REDACTED,REDACTED,REDACTED,REDACTED,22/09/2016,REDACTED,1250.29,NET,REDACTED,REDACTED
Gloucester City Council,23UE,Museum Phase 2 Hlf,GY001,Legal/Survey Fees -Land,0002,city museum roof survey,22/09/2016,422095,1395,CAP,Anthony Brookes Surveys Limited,16203E
Gloucester City Council,23UE,Tic Theatre Ticket Sales,LT107,Materials For Sale,5080,Ticket Sales - Sept 16 - 12th Night,22/09/2016,423800,522,NET,Tyger Productions,14645K
Gloucester City Council,23UE,Tic Theatre Ticket Sales,LT107,Materials For Sale,5080,Ticket Sales - Sept 2016,22/09/2016,423801,78,NET,Discover De Crypt,14588W
Gloucester City Council,23UE,Tic Theatre Ticket Sales,LT107,Materials For Sale,5080,Ticket Sales - Sept 2016,22/09/2016,423802,37,NET,Spaniel In The Works Theatre Company,10588K
Gloucester City Council,23UE,REDACTED,REDACTED,REDACTED,REDACTED,REDACTED,22/09/2016,REDACTED,52,NET,REDACTED,REDACTED
Gloucester City Council,23UE,Tic Theatre Ticket Sales,LT107,Other Minor Income,9900,Ticket Sales - Sept 16 - 12th Night,22/09/2016,423800,-43.5,NET,Tyger Productions,14645K
Gloucester City Council,23UE,Tic Theatre Ticket Sales,LT107,Other Minor Income,9900,Ticket Sales - Sept 2016,22/09/2016,423802,-3.08,NET,Spaniel In The Works Theatre Company,10588K
Gloucester City Council,23UE,Tic Theatre Ticket Sales,LT107,Sale Of Goods And Services,9230,Ticket Sales - Sept 16 - 12th Night,22/09/2016,423800,-4.9,NET,Tyger Productions,14645K
Gloucester City Council,23UE,Tic Theatre Ticket Sales,LT107,Sale Of Goods And Services,9230,Ticket Sales - Sept 2016,22/09/2016,423801,-3.25,NET,Discover De Crypt,14588W
Gloucester City Council,23UE,Tic Theatre Ticket Sales,LT107,Sale Of Goods And Services,9230,Ticket Sales - Sept 2016,22/09/2016,423802,-0.2,NET,Spaniel In The Works Theatre Company,10588K
Gloucester City Council,23UE,REDACTED,REDACTED,REDACTED,REDACTED,REDACTED,22/09/2016,REDACTED,-4.34,NET,REDACTED,REDACTED
Gloucester City Council,23UE,Tourism Marketing,LT100,Exhibits And Collections,5038,Printing,22/09/2016,423557,187,NET,Squirty Ink,13834P
Gloucester City Council,23UE,Youth Grant 2011/12,FP107,Grants,7100C,youth grant 2016-17,22/09/2016,423803,2500,NET,Play Gloucestershire,06404K
Gloucester City Council,23UE,Youth Grant 2011/12,FP107,Grants,7100C,youth grant 2016/17,22/09/2016,423804,2500,NET,Increase The Peace Project,08667D
Gloucester City Council,23UE,Youth Grant 2011/12,FP107,Grants,7100C,youth grant 2016/17,22/09/2016,423806,2000,NET,Roots Coffee & Community Cic,13358B
Gloucester City Council,23UE,Youth Grant 2011/12,FP107,Grants,7100C,youth grant 2016/17 Saturday Starz,22/09/2016,423810,1500,NET,Glo-Active,12365P
Gloucester City Council,23UE,REDACTED,REDACTED,REDACTED,REDACTED,REDACTED,22/09/2016,REDACTED,2325,NET,REDACTED,REDACTED
Gloucester City Council,23UE,REDACTED,REDACTED,REDACTED,REDACTED,REDACTED,22/09/2016,REDACTED,1760,NET,REDACTED,REDACTED
Gloucester City Council,23UE,Youth Grant 2011/12,FP107,Grants To Advice Centres,7100,youth grant 2016/17,22/09/2016,423805,2065,NET,The Venture: White City,10402E
Gloucester City Council,23UE,Docks Complex - Catering Servs,RB110,Catering Provisions -Food,5110,Food,23/09/2016,423386,73.44,NET,Janes Pantry,24500W
Gloucester City Council,23UE,Docks Complex - Services,RB100,Recycling,3631,Recycling August 2016,23/09/2016,423349,220.7,NET,Printwaste Recycling,57114W
Gloucester City Council,23UE,Docks Complex - Services,RB100,Recycling,3631,Shredding,23/09/2016,423362,117.8,NET,Printwaste Recycling,57114W
Gloucester City Council,23UE,Events,LT410,Events,5952,Believe in Gloucester 2016 sponsorship,23/09/2016,423689,2500,NET,Local World Ltd,08556P
Gloucester City Council,23UE,Guildhall Events,LA200,Advertising And Publicity,5702,adverts 17/9/16 GL magazine,23/09/2016,423938,500.02,NET,Local World Ltd,08556P
Gloucester City Council,23UE,REDACTED,REDACTED,REDACTED,REDACTED,REDACTED,23/09/2016,REDACTED,50,NET,REDACTED,REDACTED
Gloucester City Council,23UE,REDACTED,REDACTED,REDACTED,REDACTED,REDACTED,23/09/2016,REDACTED,50,NET,REDACTED,REDACTED
Gloucester City Council,23UE,Solace Project,FP843,Other Minor Supplies Services,5590,ASB August 2016,23/09/2016,423054,3250,NET,Gloucester City Homes,05244T
Gloucester City Council,23UE,Financial Services,RT200,Basic Pay - Temporary Staff,2751,Temp staff 22/7/16,26/09/2016,423374,632.88,NET,Hays Specialist Recruitment Ltd,55516P
Gloucester City Council,23UE,Financial Services,RT200,Basic Pay - Temporary Staff,2751,temp staff w/e 15/7/16,26/09/2016,423373,650.47,NET,Hays Specialist Recruitment Ltd,55516P
Gloucester City Council,23UE,Financial Services,RT200,Basic Pay - Temporary Staff,2751,temp staff w/e 8/7/16,26/09/2016,423372,527.41,NET,Hays Specialist Recruitment Ltd,55516P
Gloucester City Council,23UE,Guildhall Bar And Caf�,LA210,Catering Provisions -Food,5110,milk,26/09/2016,423878,4.76,NET,Total Produce Gloucester,12645E
Gloucester City Council,23UE,Guildhall Bar And Caf�,LA210,Catering Provisions -Food,5110,milk,26/09/2016,423879,4.76,NET,Total Produce Gloucester,12645E
Gloucester City Council,23UE,Guildhall Bar And Caf�,LA210,Catering Provisions -Food,5110,milk,26/09/2016,423880,4.76,NET,Total Produce Gloucester,12645E
Gloucester City Council,23UE,Guildhall Bar And Caf�,LA210,Catering Provisions -Food,5110,milk,26/09/2016,423881,4.76,NET,Total Produce Gloucester,12645E
Gloucester City Council,23UE,Guildhall Bar And Caf�,LA210,Catering Provisions -Food,5110,milk,26/09/2016,423882,4.76,NET,Total Produce Gloucester,12645E
Gloucester City Council,23UE,Guildhall Bar And Caf�,LA210,Catering Provisions -Food,5110,Milk,26/09/2016,422753,4.76,NET,Total Produce Gloucester,12645E
Gloucester City Council,23UE,Guildhall Bar And Caf�,LA210,Catering Provisions -Liquor,5111,Gas August 16,26/09/2016,423418,38.44,NET,Boc Ltd,59172L
Gloucester City Council,23UE,REDACTED,REDACTED,REDACTED,REDACTED,REDACTED,26/09/2016,REDACTED,400,NET,REDACTED,REDACTED
Gloucester City Council,23UE,Shopmobility,PE200,Cleaning Materials,3600,AUG16 medical waste,26/09/2016,422172,12.91,NET,Ocs Group Uk Limited T/A Cannon,06506A
Gloucester City Council,23UE,REDACTED,REDACTED,REDACTED,REDACTED,REDACTED,27/09/2016,REDACTED,860,NET,REDACTED,REDACTED
Gloucester City Council,23UE,Business Transformation & Tech,RT700,Internet Service Provider Fees,5429,call chares,27/09/2016,423949,161.61,NET,Virgin Media Business,01869B
Gloucester City Council,23UE,Business Transformation & Tech,RT700,Internet Service Provider Fees,5429,Line rental charges September 16,27/09/2016,422627,16.99,NET,Virgin Media Payments Ltd,09376J
Gloucester City Council,23UE,Business Transformation & Tech,RT700,Internet Service Provider Fees,5429,line rental JUL-AUG 01452 530335,27/09/2016,421314,16.99,NET,Virgin Media Payments Ltd,09376J
Gloucester City Council,23UE,Cemeteries,HC300,Routine R And M - Vehicles,4011,repairs to J Deere ride on,27/09/2016,423766,45,NET,Garden Machinery Gloucester,55641K
Gloucester City Council,23UE,City Museum,RY153,Contract Payments,0020,Eastgate Car Park,27/09/2016,420512,400,CAP,G & S Steeplejacks Ltd,14575F
Gloucester City Council,23UE,Client Revs & Bens Contract,RT240,Bailiffs Fees,5368,vat only invoice,27/09/2016,423775,0,NET,Phoenix Commercial Collections Ltd,13435J
Gloucester City Council,23UE,Client Revs & Bens Contract,RT240,Bailiffs Fees,5368,vat only invoice,27/09/2016,423776,0,NET,Phoenix Commercial Collections Ltd,13435J
Gloucester City Council,23UE,Client Revs & Bens Contract,RT240,Bailiffs Fees,5368,VAT only invoice,27/09/2016,423673,0,NET,Phoenix Commercial Collections Ltd,13435J
Gloucester City Council,23UE,Client Revs & Bens Contract,RT240,Bailiffs Fees,5368,VAT only invoice,27/09/2016,423674,0,NET,Bristow & Sutor,05450M
Gloucester City Council,23UE,Client Revs & Bens Contract,RT240,Bailiffs Fees,5368,VAT only invoice,27/09/2016,423777,0,NET,Bristow & Sutor,05450M
Gloucester City Council,23UE,REDACTED,REDACTED,REDACTED,REDACTED,REDACTED,27/09/2016,REDACTED,30,NET,REDACTED,REDACTED
Gloucester City Council,23UE,Docks Complex - Castlemeads Cp,RB210,Contracted Services,6970,GC Fixed Overhead,27/09/2016,423390,773.48,NET,Apcoa Parking (Uk) Ltd,09954M
Gloucester City Council,23UE,Docks Complex - Castlemeads Cp,RB210,Contracted Services,6970,GC P&D Head Cams,27/09/2016,423388,2103.39,NET,Apcoa Parking (Uk) Ltd,09954M
Gloucester City Council,23UE,Grants To Voluntary Sector,FG100,Abcd Grants,7100A,service level agreement,27/09/2016,423760,18880.5,NET,Gloucester Law Centre,18157R
Gloucester City Council,23UE,Grants To Voluntary Sector,FG100,Abcd Grants,7100A,Service Level Agreement Q1 16,27/09/2016,423762,15450.25,NET,Gloucester & District Citizens Advice Bureau,07709Y
Gloucester City Council,23UE,REDACTED,REDACTED,REDACTED,REDACTED,REDACTED,27/09/2016,REDACTED,508.75,NET,REDACTED,REDACTED
Gloucester City Council,23UE,Grants To Voluntary Sector,FG100,Members Allocation Fund,7100F,Members Allocation 16/17,27/09/2016,423759,500,NET,Friendship Cafe,59375U
Gloucester City Council,23UE,Grants To Voluntary Sector,FG100,Members Allocation Fund,7100F,Members Allocation 16/17,27/09/2016,423764,351,NET,Gl Communities,09535X
Gloucester City Council,23UE,Grants To Voluntary Sector,FG100,Members Allocation Fund,7100F,members allocation grant,27/09/2016,423758,436.98,NET,Friendship Cafe,59375U
Gloucester City Council,23UE,Grants To Voluntary Sector,FG100,Members Allocation Fund,7100F,members allocation grant,27/09/2016,424011,500,NET,Little Meadow Group,17211W
Gloucester City Council,23UE,Grants To Voluntary Sector,FG100,Members Allocation Fund,7100F,members allocation grant 2016/17,27/09/2016,423753,500,NET,Parish Of St.Mary De Lode & St.Mary De Crypt,16483T
Gloucester City Council,23UE,Grants To Voluntary Sector,FG100,Members Allocation Fund,7100F,members allocation grant 2016/17,27/09/2016,423754,349,NET,Carrie Godwin C/O The Beacon,16230B
Gloucester City Council,23UE,Head Of Regeneration & Eco Dev,GO102,Fees For Services Received,5350,Architectural Services,27/09/2016,423401,4500,NET,Roberts Limbrick Ltd,64586RV
Gloucester City Council,23UE,REDACTED,REDACTED,REDACTED,REDACTED,REDACTED,27/09/2016,REDACTED,368.2,NET,REDACTED,REDACTED
Gloucester City Council,23UE,REDACTED,REDACTED,REDACTED,REDACTED,REDACTED,27/09/2016,REDACTED,400,NET,REDACTED,REDACTED
Gloucester City Council,23UE,Kings Quarter,RY146,Contract Payments,0020,Architectural Services,27/09/2016,423401,400,CAP,Roberts Limbrick Ltd,64586RV
Gloucester City Council,23UE,Kings Quarter,RY146,Contract Payments,0020,Fees,27/09/2016,423505,2250,CAP,Lda Design Consulting Ltd,03500T
Gloucester City Council,23UE,Off Street Car Parks,PP110,Contracted Services,6970,GC Variable Enforcement,27/09/2016,423389,3091.54,NET,Apcoa Parking (Uk) Ltd,09954M
Gloucester City Council,23UE,Safer Stronger Communities,FP841,Other Minor Supplies Services,5590,Body Worn Video Camera,27/09/2016,423393,380,NET,Pinnacle Response,16179Z
Gloucester City Council,23UE,Statutory Testing,RS310,Fees For Services Received,5350,Replacement Smoke Detector,27/09/2016,423391,150.53,NET,Allcoopers Ltd,52921E
Gloucester City Council,23UE,The Arbor,HC501,Catering Provisions -Food,5110,Food w/e 28/08/2016,27/09/2016,423566,124.65,NET,Janes Pantry,24500W
Gloucester City Council,23UE,Cemeteries,HC300,Maint Of Grounds - General,3030,plastic fuel container,28/09/2016,423768,22.4,NET,Spaldings,48759Y
Gloucester City Council,23UE,City Museum Catering,LM202,Catering Provisions -Food,5110,Milk,28/09/2016,422754,7.14,NET,Total Produce Gloucester,12645E
Gloucester City Council,23UE,Gloucester Guildhall,LA100,Membership Fees,9483,membership fee 2016/17,28/09/2016,424044,260,NET,Green Business Uk,06576C
Gloucester City Council,23UE,Grants To Voluntary Sector,FG100,Members Allocation Fund,7100F,MEMBERS ALLOCATION GRANT,28/09/2016,421815,204.38,NET,City Mission,17165B
Gloucester City Council,23UE,Grants To Voluntary Sector,FG100,Members Allocation Fund,7100F,Picnic Table,28/09/2016,423506,723,NET,Centrewire Ltd,54156P
Gloucester City Council,23UE,Guildhall Bar And Caf�,LA210,Catering Provisions -Liquor,5111,drinks,28/09/2016,423737,76.8,NET,Gloucester Brewery,13373F
Gloucester City Council,23UE,REDACTED,REDACTED,REDACTED,REDACTED,REDACTED,28/09/2016,REDACTED,75,NET,REDACTED,REDACTED
Gloucester City Council,23UE,REDACTED,REDACTED,REDACTED,REDACTED,REDACTED,28/09/2016,REDACTED,100,NET,REDACTED,REDACTED
Gloucester City Council,23UE,REDACTED,REDACTED,REDACTED,REDACTED,REDACTED,28/09/2016,REDACTED,100,NET,REDACTED,REDACTED
Gloucester City Council,23UE,REDACTED,REDACTED,REDACTED,REDACTED,REDACTED,28/09/2016,REDACTED,150,NET,REDACTED,REDACTED
Gloucester City Council,23UE,REDACTED,REDACTED,REDACTED,REDACTED,REDACTED,28/09/2016,REDACTED,300,NET,REDACTED,REDACTED
Gloucester City Council,23UE,REDACTED,REDACTED,REDACTED,REDACTED,REDACTED,28/09/2016,REDACTED,500,NET,REDACTED,REDACTED
Gloucester City Council,23UE,REDACTED,REDACTED,REDACTED,REDACTED,REDACTED,28/09/2016,REDACTED,75,NET,REDACTED,REDACTED
Gloucester City Council,23UE,REDACTED,REDACTED,REDACTED,REDACTED,REDACTED,28/09/2016,REDACTED,200,NET,REDACTED,REDACTED
Gloucester City Council,23UE,REDACTED,REDACTED,REDACTED,REDACTED,REDACTED,28/09/2016,REDACTED,250,NET,REDACTED,REDACTED
Gloucester City Council,23UE,REDACTED,REDACTED,REDACTED,REDACTED,REDACTED,28/09/2016,REDACTED,125,NET,REDACTED,REDACTED
Gloucester City Council,23UE,REDACTED,REDACTED,REDACTED,REDACTED,REDACTED,28/09/2016,REDACTED,350,NET,REDACTED,REDACTED
Gloucester City Council,23UE,REDACTED,REDACTED,REDACTED,REDACTED,REDACTED,28/09/2016,REDACTED,50,NET,REDACTED,REDACTED
Gloucester City Council,23UE,REDACTED,REDACTED,REDACTED,REDACTED,REDACTED,28/09/2016,REDACTED,125,NET,REDACTED,REDACTED
Gloucester City Council,23UE,REDACTED,REDACTED,REDACTED,REDACTED,REDACTED,28/09/2016,REDACTED,200,NET,REDACTED,REDACTED
Gloucester City Council,23UE,REDACTED,REDACTED,REDACTED,REDACTED,REDACTED,28/09/2016,REDACTED,150,NET,REDACTED,REDACTED
Gloucester City Council,23UE,REDACTED,REDACTED,REDACTED,REDACTED,REDACTED,28/09/2016,REDACTED,96.25,NET,REDACTED,REDACTED
Gloucester City Council,23UE,REDACTED,REDACTED,REDACTED,REDACTED,REDACTED,28/09/2016,REDACTED,1250,NET,REDACTED,REDACTED
Gloucester City Council,23UE,REDACTED,REDACTED,REDACTED,REDACTED,REDACTED,28/09/2016,REDACTED,150,NET,REDACTED,REDACTED
Gloucester City Council,23UE,REDACTED,REDACTED,REDACTED,REDACTED,REDACTED,28/09/2016,REDACTED,250,NET,REDACTED,REDACTED
Gloucester City Council,23UE,REDACTED,REDACTED,REDACTED,REDACTED,REDACTED,28/09/2016,REDACTED,150,NET,REDACTED,REDACTED
Gloucester City Council,23UE,REDACTED,REDACTED,REDACTED,REDACTED,REDACTED,28/09/2016,REDACTED,100,NET,REDACTED,REDACTED
Gloucester City Council,23UE,REDACTED,REDACTED,REDACTED,REDACTED,REDACTED,28/09/2016,REDACTED,100,NET,REDACTED,REDACTED
Gloucester City Council,23UE,REDACTED,REDACTED,REDACTED,REDACTED,REDACTED,28/09/2016,REDACTED,150,NET,REDACTED,REDACTED
Gloucester City Council,23UE,REDACTED,REDACTED,REDACTED,REDACTED,REDACTED,28/09/2016,REDACTED,50,NET,REDACTED,REDACTED
Gloucester City Council,23UE,REDACTED,REDACTED,REDACTED,REDACTED,REDACTED,28/09/2016,REDACTED,150,NET,REDACTED,REDACTED
Gloucester City Council,23UE,REDACTED,REDACTED,REDACTED,REDACTED,REDACTED,28/09/2016,REDACTED,720,NET,REDACTED,REDACTED
Gloucester City Council,23UE,REDACTED,REDACTED,REDACTED,REDACTED,REDACTED,28/09/2016,REDACTED,950,NET,REDACTED,REDACTED
Gloucester City Council,23UE,REDACTED,REDACTED,REDACTED,REDACTED,REDACTED,28/09/2016,REDACTED,430,NET,REDACTED,REDACTED
Gloucester City Council,23UE,REDACTED,REDACTED,REDACTED,REDACTED,REDACTED,28/09/2016,REDACTED,910,NET,REDACTED,REDACTED
Gloucester City Council,23UE,REDACTED,REDACTED,REDACTED,REDACTED,REDACTED,28/09/2016,REDACTED,492.88,NET,REDACTED,REDACTED
Gloucester City Council,23UE,REDACTED,REDACTED,REDACTED,REDACTED,REDACTED,28/09/2016,REDACTED,400,NET,REDACTED,REDACTED
Gloucester City Council,23UE,Internal Health & Safety,EH110,Other Minor Supplies Services,5590,First Aid Items,28/09/2016,423399,72.39,NET,Selles Medical Ltd,50592W
Gloucester City Council,23UE,Kings Walk Bastion,GY023,Contract Payments,0020,Various Items,28/09/2016,423576,236,CAP,Ermin Plant Hire & Services Ltd,14150V
Gloucester City Council,23UE,Off Street Car Parks,PP110,Rents,3200,rent receivable SEP-DEC16,28/09/2016,423434,600,NET,Boots The Chemist,04540V
Gloucester City Council,23UE,Retail Market - Landlord,HM300,Trade Refuse Collection,3630,Removal Costs & Disconnection,28/09/2016,423361,1250,NET,System Rental Uk Ltd,03239E
Gloucester City Council,23UE,Safer Stronger Communities,FP841,Other Minor Supplies Services,5590,Install SSL Certificate,28/09/2016,423387,700,NET,Icon.Net,52505Z
Gloucester City Council,23UE,REDACTED,REDACTED,REDACTED,REDACTED,REDACTED,28/09/2016,REDACTED,420,NET,REDACTED,REDACTED
Gloucester City Council,23UE,REDACTED,REDACTED,REDACTED,REDACTED,REDACTED,28/09/2016,REDACTED,-35,NET,REDACTED,REDACTED
Gloucester City Council,23UE,Blackfriars Weddings,LA220,Catering Provisions -Liquor,5111,drinks for Blackfriars,29/09/2016,423739,305.78,NET,Cellar Supplies Cheltenham Ltd,01563L
Gloucester City Council,23UE,Blackfriars Weddings,LA220,Hire Of Equipment,5020,blackfriars glass hire,29/09/2016,423953,62.8,NET,Gloucester Event Hire,56935D
Gloucester City Council,23UE,Business Planning & Performanc,RL500,Fees For Services Received,5350,awards for staff event,29/09/2016,423791,134.09,NET,Chrome Awards,17202X
Gloucester City Council,23UE,Business Transformation & Tech,RT700,Computer Software <5000,5425,Annual Licence Charge,29/09/2016,423902,1900,NET,Northgate Public Services Uk Ltd,08982S
Gloucester City Council,23UE,Business Transformation & Tech,RT700,Computer Software <5000,5425,Annual Software Support,29/09/2016,423899,1369.96,NET,Northgate Public Services Uk Ltd,08982S
Gloucester City Council,23UE,Business Transformation & Tech,RT700,Computer Software <5000,5425,Annual Software Support,29/09/2016,423900,2729.14,NET,Northgate Public Services Uk Ltd,08982S
Gloucester City Council,23UE,Business Transformation & Tech,RT700,Computer Software <5000,5425,INFO@WORK,29/09/2016,407935,2691.72,NET,Northgate Public Services Uk Ltd,08982S
Gloucester City Council,23UE,Business Transformation & Tech,RT700,Computer Software <5000,5425,INFO@WORK,29/09/2016,407937,1900,NET,Northgate Public Services Uk Ltd,08982S
Gloucester City Council,23UE,Business Transformation & Tech,RT700,Consultants Fees,5349,CCN033 project management to May 2016,29/09/2016,423934,72379.13,NET,Civica Uk Ltd,10841X
Gloucester City Council,23UE,Cemeteries,HC300,Operational Materials,5070,plywood & stakes,29/09/2016,423964,269.61,NET,Millington & Ramstedt Ltd,29815S
Gloucester City Council,23UE,Cemeteries,HC300,Routine R And M - Vehicles,4011,strimmer repairs,29/09/2016,423780,116.39,NET,Garden Machinery Gloucester,55641K
Gloucester City Council,23UE,Cemeteries,HC300,Routine R And M - Vehicles,4011,strimmer service & repairs,29/09/2016,423779,85.59,NET,Garden Machinery Gloucester,55641K
Gloucester City Council,23UE,Cems/Crems Admin,HC100,Office Equipment <5000,5010,A4 appointment diary,29/09/2016,423932,6.99,NET,Office Star Group Ltd,55874H
Gloucester City Council,23UE,City Museum And Art Gallery,LM200,Exhibits And Collections,5038,Henry III exhibition panels,29/09/2016,423733,835,NET,Alpha Colour Printers Ltd,00945B
Gloucester City Council,23UE,City Museum Catering,LM202,Catering Provisions -Food,5110,food,29/09/2016,423886,266.03,NET,Woodward Foodservice,10714F
Gloucester City Council,23UE,City Museum Catering,LM202,Catering Provisions -Food,5110,food,29/09/2016,423887,86.7,NET,Woodward Foodservice,10714F
Gloucester City Council,23UE,Contact Centre,RB300,Publications,5060,newspapers,29/09/2016,423869,326.25,NET,Ymk Supermarket,55281U
Gloucester City Council,23UE,Contact Centre,RB300,Stationery,5302,paper,29/09/2016,423732,469,NET,Premier Paper Group Ltd,09166Y
Gloucester City Council,23UE,Contact Centre,RB300,Stationery,5302,stationery,29/09/2016,423731,12.56,NET,Lyreco Uk Ltd,11746G
Gloucester City Council,23UE,Docks Complex - Castlemeads Cp,RB210,Contracted Services,6970,GC Other Items,29/09/2016,423416,161.5,NET,Apcoa Parking (Uk) Ltd,09954M
Gloucester City Council,23UE,Docks Complex - Castlemeads Cp,RB210,Contracted Services,6970,GC Vehicles,29/09/2016,423730,460.16,NET,Apcoa Parking (Uk) Ltd,09954M
Gloucester City Council,23UE,Docks Complex - Services,RB100,Operational Equipment <5000,5012,card holders etc,29/09/2016,423948,94,NET,Bannerbridge Plc,13703G
Gloucester City Council,23UE,External Communications,RC431,Publications,5060,City Life,29/09/2016,423117,12000,NET,Gloucestershire County Council,18650D
Gloucester City Council,23UE,Guildhall Bar And Caf�,LA210,Catering Provisions -Food,5110,coffee,29/09/2016,423738,175.18,NET,Ethical Addictions Ltd,11654N
Gloucester City Council,23UE,Guildhall Bar And Caf�,LA210,Catering Provisions -Food,5110,food,29/09/2016,423885,89.93,NET,Woodward Foodservice,10714F
Gloucester City Council,23UE,Guildhall Bar And Caf�,LA210,Catering Provisions -Food,5110,food,29/09/2016,423888,133.89,NET,Woodward Foodservice,10714F
Gloucester City Council,23UE,Guildhall Events,LA200,Advertising And Publicity,5702,exhibition stand,29/09/2016,423772,780,NET,County Business Shows Ltd,17168V
Gloucester City Council,23UE,REDACTED,REDACTED,REDACTED,REDACTED,REDACTED,29/09/2016,REDACTED,0,NET,REDACTED,REDACTED
Gloucester City Council,23UE,REDACTED,REDACTED,REDACTED,REDACTED,REDACTED,29/09/2016,REDACTED,0,NET,REDACTED,REDACTED
Gloucester City Council,23UE,REDACTED,REDACTED,REDACTED,REDACTED,REDACTED,29/09/2016,REDACTED,72,NET,REDACTED,REDACTED
Gloucester City Council,23UE,Homelessness,CH120,Removal And Storage Fees,5513,storage fees,29/09/2016,423903,79.71,NET,Advanced Removals & Storage Ltd,57142R
Gloucester City Council,23UE,Homelessness,CH120,Removal And Storage Fees,5513,storage fees,29/09/2016,423904,78.21,NET,Advanced Removals & Storage Ltd,57142R
Gloucester City Council,23UE,Homelessness,CH120,Removal And Storage Fees,5513,storage fees,29/09/2016,423905,156.43,NET,Advanced Removals & Storage Ltd,57142R
Gloucester City Council,23UE,Homelessness,CH120,Removal And Storage Fees,5513,storage fees,29/09/2016,423906,312.86,NET,Advanced Removals & Storage Ltd,57142R
Gloucester City Council,23UE,Homelessness,CH120,Removal And Storage Fees,5513,storage fees,29/09/2016,423907,78.21,NET,Advanced Removals & Storage Ltd,57142R
Gloucester City Council,23UE,Homelessness,CH120,Removal And Storage Fees,5513,storage fees,29/09/2016,423908,78.21,NET,Advanced Removals & Storage Ltd,57142R
Gloucester City Council,23UE,Homelessness,CH120,Removal And Storage Fees,5513,storage fees,29/09/2016,423909,51.43,NET,Advanced Removals & Storage Ltd,57142R
Gloucester City Council,23UE,Homelessness,CH120,Removal And Storage Fees,5513,storage fees,29/09/2016,423910,50,NET,Advanced Removals & Storage Ltd,57142R
Gloucester City Council,23UE,Homelessness,CH120,Removal And Storage Fees,5513,storage fees,29/09/2016,423911,78.75,NET,Advanced Removals & Storage Ltd,57142R
Gloucester City Council,23UE,Homelessness,CH120,Removal And Storage Fees,5513,storage fees,29/09/2016,423912,202.5,NET,Advanced Removals & Storage Ltd,57142R
Gloucester City Council,23UE,Homelessness,CH120,Removal And Storage Fees,5513,storage fees,29/09/2016,423914,39.11,NET,Advanced Removals & Storage Ltd,57142R
Gloucester City Council,23UE,Homelessness,CH120,Removal And Storage Fees,5513,storage fees,29/09/2016,423915,39.11,NET,Advanced Removals & Storage Ltd,57142R
Gloucester City Council,23UE,Homelessness,CH120,Removal And Storage Fees,5513,storage fees,29/09/2016,423916,20.57,NET,Advanced Removals & Storage Ltd,57142R
Gloucester City Council,23UE,Homelessness,CH120,Removal And Storage Fees,5513,storage fees,29/09/2016,423917,41.14,NET,Advanced Removals & Storage Ltd,57142R
Gloucester City Council,23UE,Homelessness,CH120,Removal And Storage Fees,5513,storage fees,29/09/2016,423918,65.57,NET,Advanced Removals & Storage Ltd,57142R
Gloucester City Council,23UE,Homelessness,CH120,Removal And Storage Fees,5513,storage fees,29/09/2016,423919,174.86,NET,Advanced Removals & Storage Ltd,57142R
Gloucester City Council,23UE,Homelessness,CH120,Removal And Storage Fees,5513,storage fees,29/09/2016,423920,117.32,NET,Advanced Removals & Storage Ltd,57142R
Gloucester City Council,23UE,Homelessness,CH120,Removal And Storage Fees,5513,storage fees,29/09/2016,423921,39.11,NET,Advanced Removals & Storage Ltd,57142R
Gloucester City Council,23UE,Homelessness,CH120,Removal And Storage Fees,5513,storage fees,29/09/2016,423922,39.11,NET,Advanced Removals & Storage Ltd,57142R
Gloucester City Council,23UE,Homelessness,CH120,Removal And Storage Fees,5513,storage fees,29/09/2016,423924,156.43,NET,Advanced Removals & Storage Ltd,57142R
Gloucester City Council,23UE,Kings Quarter,RY146,Contract Payments,0020,time capsule for bus station,29/09/2016,423933,275,CAP,Ridgequest Limited,17148B
Gloucester City Council,23UE,REDACTED,REDACTED,REDACTED,REDACTED,REDACTED,29/09/2016,REDACTED,314,NET,REDACTED,REDACTED
Gloucester City Council,23UE,Licences,HE510,Vocational Training,2970,Scrap metal dealers act training,29/09/2016,423671,125,NET,The Institute Of Licensing (Events) Ltd,10855K
Gloucester City Council,23UE,Off Street Car Parks,PP110,Computer Software Maintenance,5427,July 2016,29/09/2016,422626,1668.02,NET,Chipside Ltd,06535T
Gloucester City Council,23UE,Off Street Car Parks,PP110,Computer Software Maintenance,5427,July 2016,29/09/2016,423138,864.08,NET,Chipside Ltd,06535T
Gloucester City Council,23UE,Off Street Car Parks,PP110,Contracted Services,6970,GC Other Items,29/09/2016,423416,11293.04,NET,Apcoa Parking (Uk) Ltd,09954M
Gloucester City Council,23UE,Registration Of Electors,RS400,Printing,5300,Canvass Mailing,29/09/2016,423104,7604.6,NET,Alpha Response Print & Mail Ltd,03029U
Gloucester City Council,23UE,Retail Market - Landlord,HM300,Window Cleaning,3610,Jun16 markets window cleaning,29/09/2016,423745,140,NET,Cornwall Cleaning Services,14050A
Gloucester City Council,23UE,Tourism Marketing,LT100,Rents,3200,Rent for quarter 29/09/2016,29/09/2016,423423,5725,NET,P W Fido & Associates,01210A
Gloucester City Council,23UE,Tourism Marketing,LT100,Vocational Training,2970,VLE communications & solutions 16/17,29/09/2016,423679,105,NET,Institute Of Customer Service,03321V
Gloucester City Council,23UE,Tourism Marketing,LT100,Window Cleaning,3610,Window CLeaning,29/09/2016,423457,12,NET,Interserve Fs (Uk) Limited,00442K
Gloucester City Council,23UE,Civica Admin Charges,RT105,Fees For Services Received,5350,Subscription,30/09/2016,423417,4,NET,Companies House,58954E
Gloucester City Council,23UE,Civica Admin Charges,RT105,Postages,5400,Post 22/08 - 09/09 2016,30/09/2016,423950,1299.63,NET,Royal Mail S.Wales & South West,35830S
Gloucester City Council,23UE,Crematorium,HC200,Cleaning Materials,3600,Services Oct - Dec 2016,30/09/2016,423926,30.79,NET,Initial Washroom Solutions,24219P
Gloucester City Council,23UE,REDACTED,REDACTED,REDACTED,REDACTED,REDACTED,30/09/2016,REDACTED,950,NET,REDACTED,REDACTED
Gloucester City Council,23UE,Financial Services,RT200,Basic Pay - Temporary Staff,2751,temp staff w/e 12/8/16,30/09/2016,423784,650.47,NET,Hays Specialist Recruitment Ltd,55516P
Gloucester City Council,23UE,Financial Services,RT200,Basic Pay - Temporary Staff,2751,temp staff w/e 1/7/16,30/09/2016,423371,650.47,NET,Hays Specialist Recruitment Ltd,55516P
Gloucester City Council,23UE,Financial Services,RT200,Basic Pay - Temporary Staff,2751,temp staff w/e 26/8/16,30/09/2016,423786,527.4,NET,Hays Specialist Recruitment Ltd,55516P
Gloucester City Council,23UE,Financial Services,RT200,Basic Pay - Temporary Staff,2751,temp staff w/e 2/9/16,30/09/2016,423787,421.92,NET,Hays Specialist Recruitment Ltd,55516P
Gloucester City Council,23UE,Financial Services,RT200,Basic Pay - Temporary Staff,2751,temp staff w/e 29/7/16,30/09/2016,423782,531.8,NET,Hays Specialist Recruitment Ltd,55516P
Gloucester City Council,23UE,Financial Services,RT200,Basic Pay - Temporary Staff,2751,temp staff w/e 5/8/16,30/09/2016,423783,597.72,NET,Hays Specialist Recruitment Ltd,55516P
Gloucester City Council,23UE,Flooding And Drainage,HE306,Maint Of Grounds - General,3030,Milton Ave reports,30/09/2016,423850,333.33,NET,Gloucestershire Wildlife Trust,15576A
Gloucester City Council,23UE,Guildhall Bar And Caf�,LA210,Catering Provisions -Food,5110,food,30/09/2016,423892,70.4,NET,Janes Pantry,24500W
Gloucester City Council,23UE,Guildhall Bar And Caf�,LA210,Catering Provisions -Food,5110,milk,30/09/2016,423883,4.76,NET,Total Produce Gloucester,12645E
Gloucester City Council,23UE,Guildhall Bar And Caf�,LA210,Catering Provisions -Food,5110,milk,30/09/2016,423884,4.76,NET,Total Produce Gloucester,12645E
Gloucester City Council,23UE,Homelessness,CH120,Fees For Services Received,5350,Medical Reports,30/09/2016,423913,360,NET,Now Medical,03468L
Gloucester City Council,23UE,Homelessness,CH120,Removal And Storage Fees,5513,August 2016,30/09/2016,423923,39.11,NET,Advanced Removals & Storage Ltd,57142R
Gloucester City Council,23UE,Investment Property,RB500,General Repair/Maint Buildings,3000,mould sampling Kings Walk bastion,30/09/2016,423945,330,NET,Envsafe,16475P
Gloucester City Council,23UE,Kings Walk Bastion,GY023,Contract Payments,0020,Kings Walk Bastion cleaning,30/09/2016,423788,498,CAP,Envsafe,16475P
Gloucester City Council,23UE,Pollution Control,HE300,Fees For Services Received,5350,July 2016 pollution control work,30/09/2016,423735,2133.8,NET,Bromsgrove District Council,15037G
Gloucester City Council,23UE,REDACTED,REDACTED,REDACTED,REDACTED,REDACTED,03/10/2016,REDACTED,297.96,NET,REDACTED,REDACTED
Gloucester City Council,23UE,REDACTED,REDACTED,REDACTED,REDACTED,REDACTED,03/10/2016,REDACTED,530,NET,REDACTED,REDACTED
Gloucester City Council,23UE,Business Transformation & Tech,RT700,Computer Consumables,5422,Various Items,,422562,612.65,NET,Dell Computers Corporation Ltd,55920C
Gloucester City Council,23UE,Business Transformation & Tech,RT700,Computer Hardware <5000,5420,port replicators & docking spacers,,423258,612.65,NET,Dell Computers Corporation Ltd,55920C
Gloucester City Council,23UE,Financial Services,RT200,Fees For Services Received,5350,Blue Vouchers Redeemed,,422090,27,NET,Blenheim Palace Visitors Partnership,10749K
,,,,,,,,Sum:,9165396.32,,,
